Workbook

Sheet GUIDE_SOLUTIONS
B1: GUIDE TO REAL OPTION VALUE SOLUTIONS
A2: #1 Session | B2: CHAPTER 2 | C2: INTRODUCTION TO BASICS
B3: EXERCISE 2.1 | C3: Put Binomial, No Income
B4: EXERCISE 2.2 | C4: Call Binomial, No Income
B5: EXERCISE 2.3 | C5: =C4 -> Call Binomial, No Income
B6: PROBLEM 2.4 | C6: Black-Scholes Deferral Option
B7: PROBLEM 2.5 | C7: =C6 -> Black-Scholes Deferral Option
B8: PROBLEM 2.6 | C8: Margrabe Exchange
A9: #2 Session | B9: CHAPTER 3 | C9: STRATEGIES
B10: EXERCISE 3.1 | C10: Write Call Strategy: "Texas Marketing Hedge"
B11: EXERCISE 3.2 | C11: Buy Protective Put Strategy
B12: EXERCISE 3.3 | C12: Write Extreme Call Strategy: "Wildcat Texas Hedge"
B13: PROBLEM 3.4 | C13: Buy Protective Call Option for Asset User
B14: PROBLEM 3.5 | C14: Buy Put funded by Write Call for Leveraged Assets
B15: PROBLEM 3.6 | C15: Maria's Unusual Salary Insurance Arrangement
A16: #2 Session | B16: CHAPTER 4 | C16: AMERICAN PERPETUAL
B17: EXERCISE 4.1 | C17: Real American Perpetual Call Option
B18: EXERCISE 4.2 | C18: =C17 -> Real American Perpetual Call Option
B19: EXERCISE 4.3 | C19: =C18 -> Real American Perpetual Call Option
B20: PROBLEM 4.4 | C20: Perpetual American Option PDE
B21: PROBLEM 4.5 | C21: Hedging Writing a Real Option
B22: PROBLEM 4.6 | C22: Hedging a Long Position in a Real Option
A23: #3 Session | B23: CHAPTER 5 | C23: AMERICAN PERPETUAL TWO FACTOR
B24: EXERCISE 5.1 | C24: Perpetual American Exchange Real Option
B25: EXERCISE 5.2 | C25: Volatile Perpetual American Exchange Real Option
B26: EXERCISE 5.3 | C26: Perpetual American QUANTO Exchange Real Option
B27: PROBLEM 5.4 | C27: =C24 -> Perpetual American Exchange Real Option
B28: PROBLEM 5.5 | C28: =C27 -> Perpetual American Exchange Real Option
B29: PROBLEM 5.6 | C29: Perpetual American Exchange Option Subsidy
A30: #4 Session | B30: CHAPTER 10 | C30: REAL DEBT STRATEGY
B31: EXERCISE 10.1 | C31: Equity, Debt Values with Endogenous Bankruptcy
B32: EXERCISE 10.2 | C32: =C31 -> Equity, Debt Values with Endogenous Bankruptcy
B33: EXERCISE 10.3 | C33: =C31 -> Equity, Debt Values with Endogenous Bankruptcy
B34: PROBLEM 10.4 | C34: Mortgage Value with Taxes
B35: PROBLEM 10.5 | C35: Lender Value
B36: PROBLEM 10.6 | C36: Fair Arrangements
A37: #3 Session | B37: CHAPTER 12 | C37: SWITCHING OPTIONS
B38: EXERCISE 12.1 | C38: Single Output Switch
B39: EXERCISE 12.2 | C39: Single In/Out Switch
B40: EXERCISE 12.3 | C40: Single Input Switch
B41: PROBLEM 12.4 | C41: Single Output Switch
B42: PROBLEM 12.5 | C42: Single Output Switch
B43: PROBLEM 12.6 | C43: Multiple Input Switching
A44: Tutorial | B44: Tutor 1 | C44: Exercise 3.2
B45: Tutor 2 | C45: ISEG GAS Investment Option
B46: Tutor 3 | C46: Problem 12.5
B47: Tutor 4 | C47: Debt Option
A48: REAL OPTION VALUE EXCEL 4 18 LIS SOLUTIONS

Sheet Exercise 2.1
A1: PUT BINOMIAL MODEL
A2: EXERCISE 2.1
A3: s | B3: 0.3
A4: INTEREST RATE | B4: 0.05
A5: TIME | B5: 1
A6: EXERCISE=K | B6: 42
A7: u | B7: =EXP(B3*SQRT(B5)) -> 1.349858808 | D7: B7= | E7: EXP(B3*SQRT(B5))
A8: d | B8: =1/B7 -> 0.7408182207 | D8: B8= | E8: 1/B7
A9: a | B9: =EXP(B4*B5) -> 1.051271096 | D9: B9= | E9: EXP(B4*B5)
A10: p | B10: =(B9-B8)/(B7-B8) -> 0.5097408652 | D10: B10= | E10: (B9-B8)/(B7-B8)
A11: SQUARE FEET | B11: 100000
A13: PERIOD 0 | B13: PERIOD 1
A16: RENT/SQ FT
B17: =$B$7*$A$18 -> 56.69406992 | D17: B17= | E17: $B$7*$A$18
A18: 42
B19: =$B$8*$A$18 -> 31.11436527 | D19: B19= | E19: $B$8*$A$18
A21: PUT OPTION VALUE/SQ FT
B22: =IF((B17<$B$6),(B17-$B$6),0) -> 0 | D22: B22= | E22: IF((B17<$B$6),(B17-$B$6),0)
A23: =EXP(-B4*B5)*(B22*$B$10+(1-$B$10)*B24) -> 5.076503942 | D23: A23= | E23: EXP(-B4*B5)*(B22*$B$10+(1-$B$10)*B24)
B24: =IF((B19<$B$6),-(B19-$B$6),0) -> 10.88563473 | D24: B24= | E24: IF((B19<$B$6),-(B19-$B$6),0)
A26: TOTAL PUT OPTION VALUE
A27: =B11*A23 -> 507650.3942 | D27: A27= | E27: B11*A23

Sheet Exercise 2.2
A1: One-Step Binomial Call
A2: Exercise 2.2
A3: VOLATILITY | B3: 0.3
A4: RATE | B4: 0.05
A5: TIME | B5: 1
A6: up | B6: =EXP(B3*SQRT(B5)) -> 1.349858808
A7: down | B7: =1/B6 -> 0.7408182207
A8: probability | B8: =(EXP(B4*B5)-B7)/(B6-B7) -> 0.5097408652
A10: =A6 -> up | B10: EXP(B3*SQRT(B5))
A11: =A7 -> down | B11: 1/B6
A12: =A8 -> probability | B12: (EXP(B4*B5)-B7)/(B6-B7)
A15: Time | B15: 0 | C15: 1
A17: Expected | C17: =B18*B6 -> 94490.11653 | D17: u
A18: Earnings | B18: 70000
C19: =B18*B7 -> 51857.27545 | D19: d
C21: =B22 -> 75000 | D21: u
A22: Cost | B22: 75000
C23: =B22 -> 75000 | D23: d
C25: =MAX((C17-C21),0) -> 19490.11653 | D25: u
A26: Call Value | B26: =EXP(-B4*B5)*(C25*B8+(1-B8)*C27) -> 9450.37764
C27: =MAX((C19-C23),0) -> 0 | D27: d
A28: C25= | C28: MAX((C17-C21),0)
A29: C27= | C29: MAX((C19-C23),0)
A30: B26= | B30: EXP(-B4*B5)*(C25*B8+(1-B8)*C27)

Sheet Exercise 2.3
A1: One-Step Binomial Call
A2: Exercise 2.3
A3: VOLATILITY | B3: 0.4
A4: RATE | B4: 0.1
A5: TIME | B5: 1
A6: up | B6: =EXP(B3*SQRT(B5)) -> 1.491824698
A7: down | B7: =1/B6 -> 0.670320046
A8: probability | B8: =(EXP(B4*B5)-B7)/(B6-B7) -> 0.5293346437
A10: =A6 -> up | B10: EXP(B3*SQRT(B5))
A11: =A7 -> down | B11: 1/B6
A12: =A8 -> probability | B12: (EXP(B4*B5)-B7)/(B6-B7)
A15: Time | B15: 0 | C15: 1
C17: =B18*B6 -> 62.6566373 | D17: u
A18: Rent | B18: 42
C19: =B18*B7 -> 28.15344193 | D19: d
C21: =B22 -> 45 | D21: u
A22: Exercise Price | B22: 45
C23: =B22 -> 45 | D23: d
C25: =MAX((C17-C21),0) -> 17.6566373 | D25: u
A26: Call Value | B26: =EXP(-B4*B5)*(C25*B8+(1-B8)*C27) -> 8.456854647
C27: =MAX((C19-C23),0) -> 0 | D27: d
A28: C25= | C28: MAX((C17-C21),0)
A29: C27= | C29: MAX((C19-C23),0)
A30: B26= | B30: EXP(-B4*B5)*(C25*B8+(1-B8)*C27)
A31: SF | B31: 100000
A32: Total Call Option Value | B32: =B26*B31 -> 845685.4647

Sheet Problem 2.4
A1: DEFERRAL OPTION
A2: Problem 2.4
A5: ASSET VALUE | B5: 500
A6: INVESTMENT COST | B6: 450
A7: RISKLESS RATE | B7: 0.04
A8: DIVIDEND | B8: 0.04
A9: TIME / YEARS | B9: 5
A10: VOLATILITY | B10: 0.2
A11: CALL PRICE | B11: =B5*B15*EXP(-B8*B9)-B6*B16*EXP(-B7*B9) -> 91.14566472 | C11: B5*B15*EXP(-B8*B9)-B6*B16*EXP(-B7*B9)
A13: d1 | B13: =(LN(B5/B6)+(B7-B8+B10^2/2)*B9)/(B10*SQRT(B9)) -> 0.4592000729 | C13: (LN(B5/B6)+(B7-B8+B10^2/2)*B9)/(B10*SQRT(B9))
A14: d2 | B14: =B13-B10*SQRT(B9) -> 0.01198647741 | C14: B13-B10*SQRT(B9)
A15: N(d1) | B15: =NORMSDIST(B13) -> 0.6769547509 | C15: NORMSDIST(B13)
A16: N(d2) | B16: =NORMSDIST(B14) -> 0.5047817981 | C16: NORMSDIST(B14)
A18: SF | B18: 100000
A19: TOTAL REAL CALL OPTION VALUE | B19: =B11*B18 -> 9114566.472
A20: INTRINSIC REAL CALL VALUE | B20: =(B5-B6)*B18 -> 5000000

Sheet Problem 2.5
A1: DEFERRAL OPTION
A3: Problem 2.5
A5: ASSET VALUE | B5: 1200
A6: INVESTMENT COST | B6: 1338
A7: RISKLESS RATE | B7: 0.05
A8: DIVIDEND | B8: 0
A9: TIME / YEARS | B9: 2
A10: VOLATILITY | B10: 0.5
A11: CALL PRICE | B11: =B5*B15*EXP(-B8*B9)-B6*B16*EXP(-B7*B9) -> 327.7550195 | C11: B5*B15*EXP(-B8*B9)-B6*B16*EXP(-B7*B9)
A13: d1 | B13: =(LN(B5/B6)+(B7-B8+B10^2/2)*B9)/(B10*SQRT(B9)) -> 0.3410313711 | C13: (LN(B5/B6)+(B7-B8+B10^2/2)*B9)/(B10*SQRT(B9))
A14: d2 | B14: =B13-B10*SQRT(B9) -> -0.3660754101 | C14: B13-B10*SQRT(B9)
A15: N(d1) | B15: =NORMSDIST(B13) -> 0.6334600174 | C15: NORMSDIST(B13)
A16: N(d2) | B16: =NORMSDIST(B14) -> 0.3571544029 | C16: NORMSDIST(B14)
A18: Assumption
A19: This investment opportunity is a European, not an American, call option.

Sheet Problem 2.6
A1: MARGRABE EXCHANGE
A2: Problem 2.6
A3: RESIDENTIAL TENANTS | B3: 1600000
A4: RETAIL TENANTS | B4: 1750000
A5: TENANT SWITCHING TIME | B5: 1
A7: BENEFIT YIELD | B7: 0.04
A8: COST YIELD | B8: 0.04
A9: BENEFIT VOLATILITY | B9: 0.2
A10: COST VOLATILITY | B10: 0.2
A11: EXCHANGE VOLATILITY | B11: =SQRT(B9^2 + B10^2 -2*B13*B10*B9) -> 0.2 | C11: SQRT(B9^2 + B10^2 -2*B13*B10*B9)
A13: CORRELATION | B13: 0.5
A14: EXCHANGE CALL OPTION VALUE | B14: =B3*B18*EXP(-B7*B5)-B4*B19*EXP(-B8*B5) -> 68736.5406 | C14: B3*B18*EXP(-B7*B5)-B4*B19*EXP(-B8*B5)
A16: d1 | B16: =(LN(B3/B4)+(B8-B7+(B11^2)/2)*B5)/(B11*SQRT(B5)) -> -0.3480607934 | C16: (LN(B3/B4)+(B8-B7+(B11^2)/2)*B5)/(B11*SQRT(B5))
A17: d2 | B17: =B16-B11*SQRT(B5) -> -0.5480607934 | C17: B16-B11*SQRT(B5)
A18: N(d1) | B18: =NORMSDIST(B16) -> 0.3638972639 | C18: NORMSDIST(B16)
A19: N(d2) | B19: =NORMSDIST(B17) -> 0.2918250801 | C19: NORMSDIST(B17)
A21: Margrabe Exchange Real Option is worth | C21: =B14 -> 68736.5406
A22: ASSUMES: volatilities and correlation are constant, this a European option,
A23: Several assumptions required.
A25: Investment in facility for retail tenants worth | C25: =B4-C28 -> 50000
A26: Option to switch tenants in one year worth | C26: =B14 -> 68736.5406
A27: So value of modular facility worth | C27: =C25+C26 -> 118736.5406
A28: Investment cost | C28: 1700000

Sheet Exercise 3.1
A1: REAL OPTION PAYOFFS
A2: Exercise 3.1
A3: OWN ASSET-DEBT | B3: =B12-$B$6 -> -150 | C3: =C12-$B$6 -> -125 | D3: -100 | E3: -75 | F3: -50 | G3: -25 | H3: 0 | I3: 25 | J3: 50 | K3: 75 | L3: 100 | M3: 125 | N3: 150
A4: WRITE REAL CALL INTRINSIC | B4: =IF(B3>0,-B3+$B$7,$B$7) -> 50 | C4: =IF(C3>0,-C3+$B$7,$B$7) -> 50 | D4: 50 | E4: 50 | F4: 50 | G4: 50 | H4: 50 | I4: 25 | J4: 0 | K4: -25 | L4: -50 | M4: -75 | N4: -100
A5: STRATEGY RESULT | B5: =B3+B4 -> -100 | C5: =C3+C4 -> -75 | D5: -50 | E5: -25 | F5: 0 | G5: 25 | H5: 50 | I5: 50 | J5: 50 | K5: 50 | L5: 50 | M5: 50 | N5: 50
A6: Debt, K | B6: 150 | E6: =D6 -> 
A7: Option cost, y | B7: =$B$33 -> 50 | C7: Assumed
A8: Own asset subject to debt K, give investor an option to buy net asset at nil cost, for immediate payment of option premium of y.
A9: STRATEGY RESULT equals write real put on net asset value.
A10: WRITE REAL CALL INTRINSIC | B10: IF(B3>0,-B3+$B$7,$B$7)
A11: STRATEGY RESULT | B11: B3+B4 | C11: MIN(B12-$B$6+$B$7,$B$7)
A12: ASSET VALUE | B12: 0 | C12: =B12+25 -> 25 | D12: =C12+25 -> 50 | E12: 75 | F12: 100 | G12: 125 | H12: 150 | I12: 175 | J12: 200 | K12: 225 | L12: 250 | M12: 275 | N12: 300
A13: =A5 -> STRATEGY RESULT | B13: =MIN(B12-$B$6+$B$7,$B$7) -> -100 | C13: =MIN(C12-$B$6+$B$7,$B$7) -> -75 | D13: -50 | E13: -25 | F13: 0 | G13: 25 | H13: 50 | I13: 50 | J13: 50 | K13: 50 | L13: 50 | M13: 50 | N13: 50
A33: Option cost, y | B33: 50

Sheet Exercise 3.2
A1: REAL OPTION PAYOFFS
A2: Exercise 3.2 | B2: 0 | C2: =B2+25 -> 25 | D2: =C2+25 -> 50 | E2: 75 | F2: 100 | G2: 125 | H2: 150 | I2: 175 | J2: 200 | K2: 225 | L2: 250 | M2: 275 | N2: 300
A3: OWN ASSET-DEBT | B3: =0-$B$6 -> -150 | C3: =B3+25 -> -125 | D3: -100 | E3: -75 | F3: -50 | G3: -25 | H3: 0 | I3: 25 | J3: 50 | K3: 75 | L3: 100 | M3: 125 | N3: 150
A4: BUY REAL PUT INTRINSIC | B4: =IF(B3<0,-B3-$B$7,-$B$7) -> 75 | C4: =IF(C3<0,-C3-$B$7,-$B$7) -> 50 | D4: 25 | E4: 0 | F4: -25 | G4: -50 | H4: -75 | I4: -75 | J4: -75 | K4: -75 | L4: -75 | M4: -75 | N4: -75
A5: STRATEGY RESULT | B5: =B4+B3 -> -75 | C5: =C4+C3 -> -75 | D5: -75 | E5: -75 | F5: -75 | G5: -75 | H5: -75 | I5: -50 | J5: -25 | K5: 0 | L5: 25 | M5: 50 | N5: 75
A6: Debt, K | B6: 150 | E6: =D6 -> 
A7: Option cost, y | B7: =B33 -> 75
A8: Own asset subject to debt K, buy right to sell asset at debt amount K, for immediate payment of option premium of y.
A9: STRATEGY RESULT equals buy real call on net asset value at nil exercise cost.
A10: =A4 -> BUY REAL PUT INTRINSIC | B10: IF(B3<0,-B3-$B$7,-$B$7)
A11: =A5 -> STRATEGY RESULT | B11: B3+B4
A33: Option cost, y | B33: 75

Sheet Exercise 3.3
A1: SALFORD TRIATHLON ARRANGEMENT
A2: Exercise 3.3
A3: POUNDS
A4: REVENUE | B4: 100
A5: FIXED COSTS | B5: 50000
A6: VARIABLE COSTS | B6: 50
A7: TRIATHLETES | B7: 0 | C7: =B7+200 -> 200 | D7: =C7+200 -> 400 | E7: 600 | F7: 800 | G7: 1000 | H7: 1200 | I7: 1400 | J7: 1600 | K7: 1800 | L7: 2000 | M7: 2200 | N7: 2400 | O7: 2600
A9: NO ARRANGEMENT
A10: REVENUE | B10: =$B$4*B7 -> 0 | C10: 20000 | D10: 40000 | E10: 60000 | F10: 80000 | G10: 100000 | H10: 120000 | I10: 140000 | J10: 160000 | K10: 180000 | L10: 200000 | M10: 220000 | N10: 240000 | O10: 260000 | P10: $B$4*P7
A11: FIXED COSTS | B11: =$B$5 -> 50000 | C11: 50000 | D11: 50000 | E11: 50000 | F11: 50000 | G11: 50000 | H11: 50000 | I11: 50000 | J11: 50000 | K11: 50000 | L11: 50000 | M11: 50000 | N11: 50000 | O11: 50000 | P11: $B$5
A12: VARIABLE COSTS | B12: =$B$6*B7 -> 0 | C12: 10000 | D12: 20000 | E12: 30000 | F12: 40000 | G12: 50000 | H12: 60000 | I12: 70000 | J12: 80000 | K12: 90000 | L12: 100000 | M12: 110000 | N12: 120000 | O12: 130000 | P12: $B$6*P7
A13: PROFIT | B13: =B10-B11-B12 -> -50000 | C13: =C10-C11-C12 -> -40000 | D13: =D10-D11-D12 -> -30000 | E13: -20000 | F13: -10000 | G13: 0 | H13: 10000 | I13: 20000 | J13: 30000 | K13: 40000 | L13: 50000 | M13: 60000 | N13: 70000 | O13: 80000 | P13: P10-P11-P12
A15: WITH SALFORD COUNCIL ARRANGEMENT
A16: REVENUE | B16: =B4 -> 100
A17: FIXED COSTS | B17: =B5-B19 -> 10000
A18: VARIABLE COSTS | B18: 50
A19: FEE | B19: =B55 -> 40000
A20: SALFORD SHARE | B20: =B56 -> 0.75
A21: SHARE START | B21: =B57 -> 100000
A23: REVENUE | B23: =$B$16*B26 -> 0 | C23: 20000 | D23: 40000 | E23: 60000 | F23: 80000 | G23: 100000 | H23: 120000 | I23: 140000 | J23: 160000 | K23: 180000 | L23: 200000 | M23: 220000 | N23: 240000 | O23: 260000 | P23: $B$16*P26
A24: FIXED COSTS | B24: =$B$17 -> 10000 | C24: 10000 | D24: 10000 | E24: 10000 | F24: 10000 | G24: 10000 | H24: 10000 | I24: 10000 | J24: 10000 | K24: 10000 | L24: 10000 | M24: 10000 | N24: 10000 | O24: 10000 | P24: $B$17
A25: VARIABLE COSTS | B25: =$B$6*B26 -> 0 | C25: 10000 | D25: 20000 | E25: 30000 | F25: 40000 | G25: 50000 | H25: 60000 | I25: 70000 | J25: 80000 | K25: 90000 | L25: 100000 | M25: 110000 | N25: 120000 | O25: 130000 | P25: $B$6*P26
A26: TRIATHLETES | B26: =B7 -> 0 | C26: =C7 -> 200 | D26: 400 | E26: 600 | F26: 800 | G26: 1000 | H26: 1200 | I26: 1400 | J26: 1600 | K26: 1800 | L26: 2000 | M26: 2200 | N26: 2400 | O26: 2600
A27: SALFORD SHARE | B27: =IF(B23>$B$21,$B$20*B23,0) -> 0 | C27: 0 | D27: 0 | E27: 0 | F27: 0 | G27: 0 | H27: 90000 | I27: 105000 | J27: 120000 | K27: 135000 | L27: 150000 | M27: 165000 | N27: 180000 | O27: 195000 | P27: IF(P23>$B$21,$B$20*P23,0)
A28: PROFIT SHARING | B28: =B23-B24-B25-B27 -> -10000 | C28: =C23-C24-C25-C27 -> 0 | D28: 10000 | E28: 20000 | F28: 30000 | G28: 40000 | H28: -40000 | I28: -45000 | J28: -50000 | K28: -55000 | L28: -60000 | M28: -65000 | N28: -70000 | O28: -75000 | P28: P23-P24-P25-P27
A29: PROFIT, NO SHARE | B29: =B13 -> -50000 | C29: -40000 | D29: -30000 | E29: -20000 | F29: -10000 | G29: 0 | H29: 10000 | I29: 20000 | J29: 30000 | K29: 40000 | L29: 50000 | M29: 60000 | N29: 70000 | O29: 80000
A55: FEE | B55: 40000
A56: SALFORD SHARE | B56: 0.75
A57: SHARE START | B57: 100000

Sheet Problem 3.4
A1: REAL OPTION PAYOFFS
A2: Problem 3.4 | B2: 0 | C2: =B2+25 -> 25 | D2: =C2+25 -> 50 | E2: 75 | F2: 100 | G2: 125 | H2: 150 | I2: 175 | J2: 200 | K2: 225 | L2: 250 | M2: 275 | N2: 300 | O2: 325 | P2: 350 | Q2: 375 | R2: 400 | S2: 425 | T2: 450 | U2: 475 | V2: 500
A3: NET ASSET VALUE | B3: =B2-$B$7 -> -300 | C3: =C2-$B$7 -> -275 | D3: -250 | E3: -225 | F3: -200 | G3: -175 | H3: -150 | I3: -125 | J3: -100 | K3: -75 | L3: -50 | M3: -25 | N3: 0 | O3: 25 | P3: 50 | Q3: 75 | R3: 100 | S3: 125 | T3: 150 | U3: 175 | V3: 200
A4: REQUIRE USE OF NET ASSET | B4: =-B3 -> 300 | C4: =-C3 -> 275 | D4: 250 | E4: 225 | F4: 200 | G4: 175 | H4: 150 | I4: 125 | J4: 100 | K4: 75 | L4: 50 | M4: 25 | N4: 0 | O4: -25 | P4: -50 | Q4: -75 | R4: -100 | S4: -125 | T4: -150 | U4: -175 | V4: -200
A5: BUY REAL CALL INTRINSIC | B5: =IF(B3>0,B3-$B$8,-$B$8) -> -75 | C5: =IF(C3>0,C3-$B$8,-$B$8) -> -75 | D5: -75 | E5: -75 | F5: -75 | G5: -75 | H5: -75 | I5: -75 | J5: -75 | K5: -75 | L5: -75 | M5: -75 | N5: -75 | O5: -50 | P5: -25 | Q5: 0 | R5: 25 | S5: 50 | T5: 75 | U5: 100 | V5: 125
A6: STRATEGY RESULT | B6: =B4+B5 -> 225 | C6: =C4+C5 -> 200 | D6: 175 | E6: 150 | F6: 125 | G6: 100 | H6: 75 | I6: 50 | J6: 25 | K6: 0 | L6: -25 | M6: -50 | N6: -75 | O6: -75 | P6: -75 | Q6: -75 | R6: -75 | S6: -75 | T6: -75 | U6: -75 | V6: -75
A7: Debt, K | B7: 300 | E7: =D7 -> 
A8: Option cost, y | B8: =B33 -> 75
A9: Require use of asset subject to debt K, buy option to buy net asset at nil cost, for immediate payment of option premium of y.
A10: STRATEGY RESULT equals buy real put on net asset value.
A11: =A5 -> BUY REAL CALL INTRINSIC | B11: IF(B3>0,B3-$B$8,-$B$8)
A12: STRATEGY RESULT | B12: B4+B5
A33: Option cost, y | B33: 75

Sheet Problem 3.5
A1: Problem 3.5 | B1: REAL OPTION PAYOFFS
A2: OWN ASSET-DEBT | B2: =B16-$B$8 -> -500 | C2: -400 | D2: -300 | E2: -200 | F2: -100 | G2: 0 | H2: 100 | I2: 200 | J2: 300 | K2: 400 | L2: 500
A3: WRITE REAL CALL AT K2 INTRINSIC | B3: =IF(B2>$B$6,$B$6-B2+$B$9,$B$9) -> 25 | C3: =IF(C2>$B$6,$B$6-C2+$B$9,$B$9) -> 25 | D3: 25 | E3: 25 | F3: 25 | G3: 25 | H3: 25 | I3: -75 | J3: -175 | K3: -275 | L3: -375
A4: BUY REAL PUT AT K1 INTRINSIC | B4: =IF(B2<$B$7,-B2-$B$7-$B$10,-$B$10) -> 475 | C4: =IF(C2<$B$7,-C2-$B$7-$B$10,-$B$10) -> 375 | D4: 275 | E4: 175 | F4: 75 | G4: -25 | H4: -25 | I4: -25 | J4: -25 | K4: -25 | L4: -25
A5: STRATEGY RESULT | B5: =B2+B3+B4 -> 0 | C5: =C2+C3+C4 -> 0 | D5: 0 | E5: 0 | F5: 0 | G5: 0 | H5: 100 | I5: 100 | J5: 100 | K5: 100 | L5: 100
A6: K2 | B6: 100
A7: K1 | B7: 0
A8: Debt, K | B8: 500 | E8: =D8 -> 
A9: Option cost, y2 | B9: 25
A10: Option cost, y1 | B10: 25
A11: Own asset subject to debt K, buy a "costless protective put" (=protective collar).
A12: STRATEGY RESULT equals real collar.
A13: =A3 -> WRITE REAL CALL AT K2 INTRINSIC | B13: IF(B2>$B$6,$B$6-B2+$B$9,$B$9)
A14: =A4 -> BUY REAL PUT AT K1 INTRINSIC | B14: IF(B2<$B$7,-B2-$B$7-$B$10,-$B$10)
A15: STRATEGY RESULT | B15: B2+B3+B4
A16: ASSET VALUE | B16: 0 | C16: =B16+100 -> 100 | D16: =C16+100 -> 200 | E16: 300 | F16: 400 | G16: 500 | H16: 600 | I16: 700 | J16: 800 | K16: 900 | L16: 1000

Sheet Problem 3.6
A1: MARIA KNOX: INSURING HER EARLY CAREER EARNINGS IN A CONTINGENT CLAIM ARRANGEMENT
A2: Problem 3.6
A3: MARIA STARTING SALARY | B3: 30000 | C3: =B3+10000 -> 40000 | D3: =C3+10000 -> 50000 | E3: 60000 | F3: 70000 | G3: 80000 | H3: 90000 | I3: 100000 | J3: 110000 | K3: 120000 | L3: 130000 | M3: 140000 | N3: 150000 | O3: 160000
A5: FUD BONUS INSURANCE PREMIUM | B5: =B41 -> 20000
A6: BONUS | B6: =B42 -> 30000
A7: LOW PAY BARRIER | B7: =B43 -> 50000
A8: HIGH PAY BARRIER | B8: =B44 -> 150000
A10: LOW PAY BONUS | B10: =IF(B3<$B$7,$B$6,0) -> 30000 | C10: =IF(C3<$B$7,$B$6,0) -> 30000 | D10: 0 | E10: 0 | F10: 0 | G10: 0 | H10: 0 | I10: 0 | J10: 0 | K10: 0 | L10: 0 | M10: 0 | N10: 0 | O10: 0
A11: HIGH PAY BONUS | B11: =IF(B3>$B$8,$B$6,0) -> 0 | C11: =IF(C3>$B$8,$B$6,0) -> 0 | D11: 0 | E11: 0 | F11: 0 | G11: 0 | H11: 0 | I11: 0 | J11: 0 | K11: 0 | L11: 0 | M11: 0 | N11: 0 | O11: 30000
A12: TOTAL PAY + BONUS-FUD | B12: =B3+B10+B11-$B$5 -> 40000 | C12: 50000 | D12: 30000 | E12: 40000 | F12: 50000 | G12: 60000 | H12: 70000 | I12: 80000 | J12: 90000 | K12: 100000 | L12: 110000 | M12: 120000 | N12: 130000 | O12: 170000
A13: =A3 -> MARIA STARTING SALARY | B13: =B3 -> 30000 | C13: 40000 | D13: 50000 | E13: 60000 | F13: 70000 | G13: 80000 | H13: 90000 | I13: 100000 | J13: 110000 | K13: 120000 | L13: 130000 | M13: 140000 | N13: 150000 | O13: 160000
A41: =A5 -> FUD BONUS INSURANCE PREMIUM | B41: 20000
A42: =A6 -> BONUS | B42: 30000
A43: =A7 -> LOW PAY BARRIER | B43: 50000
A44: =A8 -> HIGH PAY BARRIER | B44: 150000

Sheet Exercise 4.1
A1: Perpetual American Option
A2: Exercise 4.1
A3: V | B3: 500
A4: K | B4: 450
A5: s | B5: 0.2
A6: r | B6: 0.04
A7: d | B7: 0.04
A8: ROV | B8: =IF(B3<B12,(B12-B4)*(B3/B12)^B14,B10) -> 138.8888889 | C8: IF(B3<B12,(B12-B4)*(B3/B12)^B14,B10)
A9: ROV | B9: =IF(B3<B12,B13*(B3^B14),B10) -> 138.8888889 | C9: IF(B3<B12,B13*(B3^B14),B10)
A10: V-K | B10: =B3-B4 -> 50 | C10: B3-B4
A11: F'(V) | B11: =IF(B3<B12,B13*B14*(B3^(B14-1)),1) -> 0.5555555556 | C11: IF(B3<B12,B13*B14*(B3^(B14-1)),1)
A12: V* | B12: =(B14/(B14-1))*B4 -> 900 | C12: (B14/(B14-1))*B4
A13: A | B13: =(B12-B4)/(B12^B14) -> 0.0005555555556 | C13: (B12-B4)/(B12^B14)
A14: b1 | B14: =0.5-(B6-B7)/(B5^2)+SQRT(((B6-B7)/(B5^2)-0.5)^2 + 2*B6/(B5^2)) -> 2
A15: SF | B15: 100000
A17: ROV | B17: =B9*B15 -> 13888888.89
A18: V* TOTAL | B18: =B12*B15 -> 90000000

Sheet Exercise 4.2
A1: Perpetual American Option
A2: Exercise 4.2
A3: V | B3: 750
A4: K | B4: 850
A5: s | B5: 0.5
A6: r | B6: 0.04
A7: d | B7: 0.04
A8: ROV | B8: =IF(B3<B12,(B12-B4)*(B3/B12)^B14,B10) -> 385.5514036 | C8: IF(B3<B12,(B12-B4)*(B3/B12)^B14,B10)
A9: ROV | B9: =IF(B3<B12,B13*(B3^B14),B10) -> 385.5514036 | C9: IF(B3<B12,B13*(B3^B14),B10)
A10: V-K | B10: =B3-B4 -> -100 | C10: B3-B4
A11: F'(V) | B11: =IF(B3<B12,B13*B14*(B3^(B14-1)),1) -> 0.6451475043 | C11: IF(B3<B12,B13*B14*(B3^(B14-1)),1)
A12: V* | B12: =(B14/(B14-1))*B4 -> 4183.549772 | C12: (B14/(B14-1))*B4
A13: A | B13: =(B12-B4)/(B12^B14) -> 0.09504472181 | C13: (B12-B4)/(B12^B14)
A14: b1 | B14: =0.5-(B6-B7)/(B5^2)+SQRT(((B6-B7)/(B5^2)-0.5)^2 + 2*B6/(B5^2)) -> 1.254983444 | C14: 0.5-(B6-B7)/(B5^2)+SQRT(((B6-B7)/(B5^2)-0.5)^2 + 2*B6/(B5^2))
A16: ODE | B16: =0.5*(B5^2)*(B3^2)*B17+(B6-B7)*B3*B11-B6*B9 -> 0
A17: F''(V) | B17: =IF(B3<B12,B13*B14*(B14-1)*(B3^(B14-2)),0) -> 0.0002193359096
A18: F'(V*) | B18: =B13*B14*(B12^(B14-1)) -> 1
A19: F(V*) | B19: =IF(B3<B12,B13*(B12^B14),B10) -> 3333.549772
A20: V*-K | B20: =B12-B4 -> 3333.549772
A21: SF | B21: 2000
A22: TOTAL ROV | B22: =B9*B21 -> 771102.8073
A23: COST | B23: 200000
A25: SECURITY ANALYSIS OF CITY LTD.
A26: ASSETS | B26: LIAB
A27: =750000-B23 -> 550000 | B27: 500000
A28: =$B$22 -> 771102.8073 | B28: =A29-B27 -> 821102.8073 | C28: NET WORTH
A29: =A27+A28 -> 1321102.807
A31: SHARES | B31: 1000000
B32: =B28/B31 -> 0.8211028073 | C32: NET REAL OPTION VALUE/SHARE

Sheet Exercise 4.3
A1: Perpetual American Option
A2: Exercise 4.3
A3: UMIT | B3: 1.1
A4: COST | B4: 1.7
A5: s | B5: 0.2
A6: r | B6: 0.04
A7: d | B7: 0.04
A8: ROV | B8: =IF(B3<B12,(B12-B4)*(B3/B12)^B14,B10) -> 0.1779411765 | C8: IF(B3<B12,(B12-B4)*(B3/B12)^B14,B10)
A9: F(V) | B9: =IF(B3<B12,B13*(B3^B14),B10) -> 0.1779411765 | C9: IF(B3<B12,B13*(B3^B14),B10)
A10: V-K | B10: =B3-B4 -> -0.6 | C10: B3-B4
A11: F'(V) | B11: =IF(B3<B12,B13*B14*(B3^(B14-1)),1) -> 0.3235294118 | C11: IF(B3<B12,B13*B14*(B3^(B14-1)),1)
A12: V* | B12: =(B14/(B14-1))*B4 -> 3.4 | C12: (B14/(B14-1))*B4
A13: A | B13: =(B12-B4)/(B12^B14) -> 0.1470588235 | C13: (B12-B4)/(B12^B14)
A14: b1 | B14: =0.5-(B6-B7)/(B5^2)+SQRT(((B6-B7)/(B5^2)-0.5)^2 + 2*B6/(B5^2)) -> 2
A15: b1= | B15: 0.5-(B6-B7)/(B5^2)+SQRT(((B6-B7)/(B5^2)-0.5)^2 + 2*B6/(B5^2))
A16: ODE | B16: =0.5*(B5^2)*(B3^2)*B17+(B6-B7)*B3*B11-B6*B9 -> 0
A17: F''(V) | B17: =IF(B3<B12,B13*B14*(B14-1)*(B3^(B14-2)),0) -> 0.2941176471
A18: F'(V*) | B18: =B13*B14*(B12^(B14-1)) -> 1
A19: F(V*) | B19: =IF(B3<B12,B13*(B12^B14),B10) -> 1.7
A20: V*-K | B20: =B12-B4 -> 1.7
A22: IT IS HARD TO IMAGINE THAT THERE IS ANOTHER
A23: TRADED ASSET CORRELATED WITH UMIT, THAT
A24: THE VOLATILITY OF UMIT CAN BE ESTIMATED
A25: ACCURATELY, OR THAT THIS ACQUISITION COULD
A26: BE PERPETUAL.
A28: BUT SOLVING THE PROBLEM INDICATES A THOUGHT
A29: PROCESS, WHEREBY UMAN MIGHT CONSIDER DEFERRAL
A30: UNTIL UMIT IS WORTH OVER 3 TIMES CURRENT VALUE,
A31: OR A GOVERNMENT REDUCES THE EFFECTIVE COST,
A32: UNLESS UMAN HAS OTHER OBJECTIVE FUNCTIONS.

Sheet Problem 4.4
A1: Perpetual American Option
A2: Problem 4.4
A3: V | B3: 500
A4: K | B4: 450
A5: s | B5: 0.2
A6: r | B6: 0.04
A7: d | B7: 0.04
A9: F(V) | B9: =IF(B3<B12,B13*(B3^B14),B10) -> 138.8888889 | C9: IF(B3<B12,B13*(B3^B14),B10)
A10: V-K | B10: =B3-B4 -> 50 | C10: B3-B4
A11: F'(V) | B11: =IF(B3<B12,B13*B14*(B3^(B14-1)),1) -> 0.5555555556 | C11: IF(B3<B12,B13*B14*(B3^(B14-1)),1)
A12: V* | B12: =(B14/(B14-1))*B4 -> 900 | C12: (B14/(B14-1))*B4
A13: A | B13: =(B12-B4)/(B12^B14) -> 0.0005555555556 | C13: (B12-B4)/(B12^B14)
A14: b1 | B14: =0.5-(B6-B7)/(B5^2)+SQRT(((B6-B7)/(B5^2)-0.5)^2 + 2*B6/(B5^2)) -> 2
A15: b1= | B15: 0.5-(B6-B7)/(B5^2)+SQRT(((B6-B7)/(B5^2)-0.5)^2 + 2*B6/(B5^2))
A16: ODE | B16: =0.5*(B5^2)*(B3^2)*B17+(B6-B7)*B3*B11-B6*B9 -> 0 | C16: 0.5*(B5^2)*(B3^2)*B17+(B6-B7)*B3*B11-B6*B9
A17: F''(V) | B17: =IF(B3<B12,B13*B14*(B14-1)*(B3^(B14-2)),0) -> 0.001111111111 | C17: IF(B3<B12,B13*B14*(B14-1)*(B3^(B14-2)),0)
A18: F'(V*) | B18: =B13*B14*(B12^(B14-1)) -> 1 | C18: B13*B14*(B12^(B14-1))
A19: F(V*) | B19: =IF(B3<B12,B13*(B12^B14),B10) -> 450 | C19: IF(B3<B12,B13*(B12^B14),B10)
A20: V*-K | B20: =B12-B4 -> 450 | C20: B12-B4
A22: INSERTING DELTA, GAMMA AND THE F(V) FUNCTION
A23: INTO ODE RESULTS IN THE ODE EQUAL TO ZERO.
A24: VALUE MATCHING AND SMOOTH PASTING CONDITIONS
A25: ARE MET.

Sheet Problem 4.5
B1: Hedging a Perpetual American Option
A2: Problem 4.5 | B2: PER SF | C2: TOTAL
A3: V | B3: 750 | C3: =B3*C15 -> 1500000
A4: K | B4: 850 | C4: =B4*C15 -> 1700000
A5: s | B5: 0.5 | C5: =B5 -> 0.5
A6: r | B6: 0.04 | C6: =B6 -> 0.04
A7: d | B7: 0.04 | C7: =B7 -> 0.04
A9: F(V) | B9: =IF(B3<B12,B13*(B3^B14),B10) -> 385.5514036 | C9: =B9*C15 -> 771102.8073
A10: V-K | B10: =B3-B4 -> -100 | C10: =C3-C4 -> -200000
A11: F'(V) | B11: =IF(B3<B12,B13*B14*(B3^(B14-1)),1) -> 0.6451475043 | C11: =IF(C3<C12,C13*C14*(C3^(C14-1)),1) -> 0.6451475043
A12: V* | B12: =(B14/(B14-1))*B4 -> 4183.549772 | C12: =(C14/(C14-1))*C4 -> 8367099.544
A13: A | B13: =(B12-B4)/(B12^B14) -> 0.09504472181 | C13: =(C12-C4)/(C12^C14) -> 0.01368421876
A14: b1 | B14: =0.5-(B6-B7)/(B5^2)+SQRT(((B6-B7)/(B5^2)-0.5)^2 + 2*B6/(B5^2)) -> 1.254983444 | C14: =0.5-(C6-C7)/(C5^2)+SQRT(((C6-C7)/(C5^2)-0.5)^2 + 2*C6/(C5^2)) -> 1.254983444
A15: SF | C15: 2000
A16: CITY OTHER NET ASSETS | C16: 250000
A17: COST CITY'S ROV | C17: 200000
A19: CITY LTD VALUE | C19: =C9+C16-C17 -> 821102.8073
A20: CITY LTD ISSUED FOR | C20: 900000
A21: DELTA HEDGE POSITION: V | C21: =C11*C3 -> 967721.2564 | D21: C11*C3
A24: INITIAL PROFITS | C24: =C20-C19 -> 78897.19272 | D24: C20-C19
A25: EVENTUAL PROFITS DEPEND ON HEDGING INACCURACY & TRANSACTION COSTS.
B27: ROV NUMERICAL DELTA | E27: 10% DECREASE | F27: 10% INCREASE
A28: =A3 -> V | B28: 675 | C28: =B3 -> 750 | D28: 825 | E28: =-1+B28/C28 -> -0.1 | F28: =D28/C28-1 -> 0.1
A29: =A4 -> K | B29: 850 | C29: =B4 -> 850 | D29: 850
A30: s | B30: 0.5 | C30: =B5 -> 0.5 | D30: 0.5
A31: r | B31: 0.04 | C31: =B6 -> 0.04 | D31: 0.04
A32: d | B32: 0.04 | C32: =B7 -> 0.04 | D32: 0.04
E33: AS % V
A34: =A9 -> F(V) | B34: =IF(B28<B37,B38*(B28^B39),B35) -> 337.7982501 | C34: =B9 -> 385.5514036 | D34: =IF(D28<D37,D38*(D28^D39),D35) -> 434.5396629 | E34: =(B34-C34)/(B28-C28) -> 0.6367087136 | F34: =(D34-C34)/(D28-C28) -> 0.6531767901
A35: =A10 -> V-K | B35: =B28-B29 -> -175 | C35: -100 | D35: =D28-D29 -> -25
A36: =A11 -> F'(V) | B36: =IF(B28<B37,B38*B39*(B28^(B39-1)),1) -> 0.6280462388 | C36: 0.6451475043 | D36: =IF(D28<D37,D38*D39*(D28^(D39-1)),1) -> 0.6610182818
A37: =A12 -> V* | B37: =(B39/(B39-1))*B29 -> 4183.549772 | C37: 4183.549772 | D37: =(D39/(D39-1))*D29 -> 4183.549772
A38: =A13 -> A | B38: =(B37-B29)/(B37^B39) -> 0.09504472181 | C38: 0.09504472181 | D38: =(D37-D29)/(D37^D39) -> 0.09504472181
A39: b1 | B39: =0.5-(B31-B32)/(B30^2)+SQRT(((B31-B32)/(B30^2)-0.5)^2 + 2*B31/(B30^2)) -> 1.254983444 | C39: 1.254983444 | D39: =0.5-(D31-D32)/(D30^2)+SQRT(((D31-D32)/(D30^2)-0.5)^2 + 2*D31/(D30^2)) -> 1.254983444
A41: Hedging a Perpetual American WRITTEN CALL Option (per SF)
A42: MONTH | B42: 0 | C42: =B42+1 -> 1 | D42: =C42+1 -> 2 | E42: =D42+1 -> 3 | F42: =E42+1 -> 4
A43: V | B43: 750 | C43: 800 | D43: 750 | E43: 700 | F43: 750
A44: K | B44: 850 | C44: =B44 -> 850 | D44: 850 | E44: 850 | F44: 850
A45: s | B45: 0.5 | C45: 0.5 | D45: 0.5 | E45: 0.5 | F45: 0.5
A46: r | B46: 0.04 | C46: 0.04 | D46: 0.04 | E46: 0.04 | F46: 0.04
A47: d | B47: 0.04 | C47: 0.04 | D47: 0.04 | E47: 0.04 | F47: 0.04
A48: OUTPUT
A49: WRITE ROV CALL | B49: =IF(B43<B57,-B58*(B43^B59),-B61) -> -385.5514036 | C49: =IF(C43<C57,-C58*(C43^C59),-C61) -> -418.078537 | D49: =IF(D43<D57,-D58*(D43^D59),-D61) -> -385.5514036 | E49: =IF(E43<E57,-E58*(E43^E59),-E61) -> -353.5728745 | F49: =IF(F43<F57,-F58*(F43^F59),-F61) -> -385.5514036
A50: HEDGE LONG VD | B50: =B56*B43 -> 483.8606282 | C50: =B50+C51 -> 492.4242668 | D50: =C50+D51 -> 484.3958556 | E50: =D50+E51 -> 476.5207062 | F50: =E50+F51 -> 484.9583663
A51: ALTER HEDGE | C51: =(C56-B56)*C43 -> 8.563638593 | D51: =(D56-C56)*D43 -> -8.028411181 | E51: =(E56-D56)*E43 -> -7.875149398 | F51: =(F56-E56)*F43 -> 8.437660069
A52: GAIN ROV | C52: =-B49+C49 -> -32.52713334 | D52: =-C49+D49 -> 32.52713334 | E52: =-D49+E49 -> 31.97852913 | F52: =-E49+F49 -> -31.97852913
A53: GAIN V | C53: =(B50/B43)*(C43-B43) -> 32.25737521 | D53: =(C50/C43)*(D43-C43) -> -30.77651667 | E53: =(D50/D43)*(E43-D43) -> -32.29305704 | F53: =(E50/E43)*(F43-E43) -> 34.0371933
A54: NET GAIN | C54: =C52+C53 -> -0.2697581264 | D54: =D52+D53 -> 1.750616665 | E54: =E52+E53 -> -0.314527907 | F54: =F52+F53 -> 2.058664167
A55: CUM GAIN | C55: =SUM($C$54:C54) -> -0.2697581264 | D55: =SUM($C$54:D54) -> 1.480858539 | E55: =SUM($C$54:E54) -> 1.166330632 | F55: =SUM($C$54:F54) -> 3.224994799
A56: F'(V) | B56: =IF(B43<B57,B58*B59*(B43^(B59-1)),1) -> 0.6451475043 | C56: =IF(C43<C57,C58*C59*(C43^(C59-1)),1) -> 0.6558520525 | D56: =IF(D43<D57,D58*D59*(D43^(D59-1)),1) -> 0.6451475043 | E56: =IF(E43<E57,E58*E59*(E43^(E59-1)),1) -> 0.6338972908 | F56: =IF(F43<F57,F58*F59*(F43^(F59-1)),1) -> 0.6451475043
A57: V* | B57: =(B59/(B59-1))*B44 -> 4183.549772 | C57: =(C59/(C59-1))*C44 -> 4183.549772 | D57: =(D59/(D59-1))*D44 -> 4183.549772 | E57: =(E59/(E59-1))*E44 -> 4183.549772 | F57: =(F59/(F59-1))*F44 -> 4183.549772
A58: A | B58: =(B57-B44)/(B57^B59) -> 0.09504472181 | C58: =(C57-C44)/(C57^C59) -> 0.09504472181 | D58: =(D57-D44)/(D57^D59) -> 0.09504472181 | E58: =(E57-E44)/(E57^E59) -> 0.09504472181 | F58: =(F57-F44)/(F57^F59) -> 0.09504472181
A59: b1 | B59: =0.5-(B46-B47)/(B45^2)+SQRT(((B46-B47)/(B45^2)-0.5)^2 + 2*B46/(B45^2)) -> 1.254983444 | C59: =0.5-(C46-C47)/(C45^2)+SQRT(((C46-C47)/(C45^2)-0.5)^2 + 2*C46/(C45^2)) -> 1.254983444 | D59: =0.5-(D46-D47)/(D45^2)+SQRT(((D46-D47)/(D45^2)-0.5)^2 + 2*D46/(D45^2)) -> 1.254983444 | E59: =0.5-(E46-E47)/(E45^2)+SQRT(((E46-E47)/(E45^2)-0.5)^2 + 2*E46/(E45^2)) -> 1.254983444 | F59: =0.5-(F46-F47)/(F45^2)+SQRT(((F46-F47)/(F45^2)-0.5)^2 + 2*F46/(F45^2)) -> 1.254983444
A60: F''(V) | B60: =IF(B43<B57,B58*B59*(B59-1)*(B43^(B59-2)),0) -> 0.0002193359096 | C60: =IF(C43<C57,C58*C59*(C59-1)*(C43^(C59-2)),0) -> 0.0002090392685 | D60: =IF(D43<D57,D58*D59*(D59-1)*(D43^(D59-2)),0) -> 0.0002193359096 | E60: =IF(E43<E57,E58*E59*(E59-1)*(E43^(E59-2)),0) -> 0.0002309047344 | F60: =IF(F43<F57,F58*F59*(F59-1)*(F43^(F59-2)),0) -> 0.0002193359096
A61: V-K | B61: =B43-B44 -> -100 | C61: =C43-C44 -> -50 | D61: =D43-D44 -> -100 | E61: =E43-E44 -> -150 | F61: =F43-F44 -> -100
A63: =A50 -> HEDGE LONG VD | B63: B56*B43 | C63: B50+C51
A64: ALTER HEDGE | C64: (C56-B56)*C43
A65: GAIN ROV | C65: -B49+C49
A66: GAIN V | C66: (B50/B43)*(C43-B43)
A67: NET GAIN | C67: C52+C53
A68: CUM GAIN | C68: SUM($C$54:C54)
A70: ISSUE A PERPETUAL AMERICAN REAL CALL OPTION
A71: HEDGE BY BUYING DELTA OF V BEGINNING OF EACH MONTH.

Sheet Problem 4.6
A1: Perpetual American Option
A2: Problem 4.6 | B2: MONTH | C2: 1 | D2: 2 | E2: 3 | F2: 4
A3: V | B3: 750 | C3: 800 | D3: 750 | E3: 700 | F3: 750
A4: K | B4: 850 | C4: 850 | D4: 850 | E4: 850 | F4: 850
A5: s | B5: 0.5 | C5: 0.5 | D5: 0.5 | E5: 0.5 | F5: 0.5
A6: r | B6: 0.04 | C6: 0.04 | D6: 0.02 | E6: 0.05 | F6: 0.04
A7: d | B7: 0.04 | C7: 0.04 | D7: 0.04 | E7: 0.04 | F7: 0.04
A9: F(V) | B9: =IF(B3<B12,B13*(B3^B14),B10) -> 385.5514036 | C9: =IF(C3<C12,C13*(C3^C14),C10) -> 418.078537 | D9: =IF(D3<D12,D13*(D3^D14),D10) -> 366.9220618 | E9: =IF(E3<E12,E13*(E3^E14),E10) -> 361.9412413 | F9: =IF(F3<F12,F13*(F3^F14),F10) -> 385.5514036
A10: V-K | B10: =B3-B4 -> -100 | C10: =C3-C4 -> -50 | D10: =D3-D4 -> -100 | E10: =E3-E4 -> -150 | F10: =F3-F4 -> -100
A11: F'(V) | B11: =IF(B3<B12,B13*B14*(B3^(B14-1)),1) -> 0.6451475043 | C11: =IF(C3<C12,C13*C14*(C3^(C14-1)),1) -> 0.6558520525 | D11: =IF(D3<D12,D13*D14*(D3^(D14-1)),1) -> 0.628442874 | E11: =IF(E3<E12,E13*E14*(E3^(E14-1)),1) -> 0.6422122987 | F11: =IF(F3<F12,F13*F14*(F3^(F14-1)),1) -> 0.6451475043
A12: V* | B12: =(B14/(B14-1))*B4 -> 4183.549772 | C12: =(C14/(C14-1))*C4 -> 4183.549772 | D12: =(D14/(D14-1))*D4 -> 3837.103464 | E12: =(E14/(E14-1))*E4 -> 4361.691572 | F12: =(F14/(F14-1))*F4 -> 4183.549772
A13: A | B13: =(B12-B4)/(B12^B14) -> 0.09504472181 | C13: =(C12-C4)/(C12^C14) -> 0.09504472181 | D13: =(D12-D4)/(D12^D14) -> 0.07436950816 | E13: =(E12-E4)/(E12^E14) -> 0.105898073 | F13: =(F12-F4)/(F12^F14) -> 0.09504472181
A14: b1 | B14: =0.5-(B6-B7)/(B5^2)+SQRT(((B6-B7)/(B5^2)-0.5)^2 + 2*B6/(B5^2)) -> 1.254983444 | C14: =0.5-(C6-C7)/(C5^2)+SQRT(((C6-C7)/(C5^2)-0.5)^2 + 2*C6/(C5^2)) -> 1.254983444 | D14: =0.5-(D6-D7)/(D5^2)+SQRT(((D6-D7)/(D5^2)-0.5)^2 + 2*D6/(D5^2)) -> 1.284556598 | E14: =0.5-(E6-E7)/(E5^2)+SQRT(((E6-E7)/(E5^2)-0.5)^2 + 2*E6/(E5^2)) -> 1.242048592 | F14: =0.5-(F6-F7)/(F5^2)+SQRT(((F6-F7)/(F5^2)-0.5)^2 + 2*F6/(F5^2)) -> 1.254983444
A16: SF | B16: 2000 | C16: 2000 | D16: 2000 | E16: 2000 | F16: 2000
A17: TOTAL ROV | B17: =B9*B16 -> 771102.8073 | C17: =C9*C16 -> 836157.074 | D17: =D9*D16 -> 733844.1237 | E17: =E9*E16 -> 723882.4826 | F17: =F9*F16 -> 771102.8073
A18: COST | B18: 200000 | C18: 200000 | D18: 200000 | E18: 200000 | F18: 200000
A19: RO WORTH | B19: =B17-B18 -> 571102.8073 | C19: =C17-C18 -> 636157.074 | D19: =D17-D18 -> 533844.1237 | E19: =E17-E18 -> 523882.4826 | F19: =F17-F18 -> 571102.8073
A20: SECURITY ANALYSIS OF CITY LTD.
A21: FUNDAMENTALS
A22: OTHER NET ASSETS | B22: 250000 | C22: =B22 -> 250000 | D22: =C22 -> 250000 | E22: =D22 -> 250000 | F22: =E22 -> 250000
A23: ROV | B23: =B19 -> 571102.8073 | C23: =C19 -> 636157.074 | D23: =D19 -> 533844.1237 | E23: =E19 -> 523882.4826 | F23: =F19 -> 571102.8073
A24: TOTAL EQUITY VALUE | B24: =B22+B23 -> 821102.8073 | C24: =C22+C23 -> 886157.074 | D24: =D22+D23 -> 783844.1237 | E24: =E22+E23 -> 773882.4826 | F24: =F22+F23 -> 821102.8073
A25: SHARES | B25: 1000000 | C25: 1000000 | D25: 1000000 | E25: 1000000 | F25: 1000000
A26: NET REAL OPTION VALUE/SHARE | B26: =B24/B25 -> 0.8211028073 | C26: =C24/C25 -> 0.886157074 | D26: =D24/D25 -> 0.7838441237 | E26: =E24/E25 -> 0.7738824826 | F26: =F24/F25 -> 0.8211028073
A27: MP/SHARE | B27: =B26 -> 0.8211028073 | C27: 1 | D27: 0.82 | E27: 0.8 | F27: 0.8
A28: PHF SHARES | B28: =0.1*B25 -> 100000
A29: PHF MARKET POSITION | B29: $B$28*B27
A30: PHF MARKET POSITION | B30: =$B$28*B27 -> 82110.28073 | C30: =$B$28*C27 -> 100000 | D30: =$B$28*D27 -> 82000 | E30: =$B$28*E27 -> 80000 | F30: =$B$28*F27 -> 80000
A31: PHF HEDGE: SHORT VD | B31: =B16*B51*0.1 -> -96772.12564 | C31: =C16*C51*0.1 -> -95059.39792 | D31: =D16*D51*0.1 -> -99170.77469 | E31: =E16*E51*0.1 -> -97243.05524 | F31: =F16*F51*0.1 -> -96802.7744
A32: PHF HEDGE | B32: B16*B51*0.1
A33: GAINS/LOSSES
A34: PHF POSITION | C34: =C30-B30 -> 17889.71927 | D34: =D30-C30 -> -18000 | E34: =E30-D30 -> -2000 | F34: =F30-E30 -> 0
A35: PHF HEDGE | C35: =2000*0.1*C54 -> -6451.475043 | D35: =2000*0.1*D54 -> 5941.21237 | E35: =2000*0.1*E54 -> 6611.384979 | F35: =2000*0.1*F54 -> -6945.932517
A37: CUM £ GAIN/LOSS
A38: =A34 -> PHF POSITION | C38: =SUM($C$34:C34) -> 17889.71927 | D38: =SUM($C$34:D34) -> -110.2807284 | E38: =SUM($C$34:E34) -> -2110.280728 | F38: =SUM($C$34:F34) -> -2110.280728
A39: =A35 -> PHF HEDGE | C39: =SUM($C$35:C35) -> -6451.475043 | D39: =SUM($C$35:D35) -> -510.2626726 | E39: =SUM($C$35:E35) -> 6101.122307 | F39: =SUM($C$35:F35) -> -844.8102101
A40: NET CUM GAIN | C40: =C38+C39 -> 11438.24423 | D40: =D38+D39 -> -620.543401 | E40: =E38+E39 -> 3990.841578 | F40: =F38+F39 -> -2955.090938
B42: Hedging a Perpetual American Option
A43: MONTH | B43: 0 | C43: =B43+1 -> 1 | D43: =C43+1 -> 2 | E43: =D43+1 -> 3 | F43: =E43+1 -> 4
A44: V | B44: =B3 -> 750 | C44: =C3 -> 800 | D44: =D3 -> 750 | E44: =E3 -> 700 | F44: =F3 -> 750
A45: K | B45: =B4 -> 850 | C45: =B45 -> 850 | D45: 850 | E45: 850 | F45: 850
A46: s | B46: =B5 -> 0.5 | C46: 0.5 | D46: 0.5 | E46: 0.5 | F46: 0.5
A47: r | B47: =B6 -> 0.04 | C47: =C6 -> 0.04 | D47: =D6 -> 0.02 | E47: =E6 -> 0.05 | F47: =F6 -> 0.04
A48: d | B48: =B7 -> 0.04 | C48: =B48 -> 0.04 | D48: =C48 -> 0.04 | E48: =D48 -> 0.04 | F48: =E48 -> 0.04
A49: OUTPUT
A50: ROV | B50: =IF(B44<B58,B59*(B44^B60),B62) -> 385.5514036 | C50: =IF(C44<C58,C59*(C44^C60),C62) -> 418.078537 | D50: =IF(D44<D58,D59*(D44^D60),D62) -> 366.9220618 | E50: =IF(E44<E58,E59*(E44^E60),E62) -> 361.9412413 | F50: =IF(F44<F58,F59*(F44^F60),F62) -> 385.5514036
A51: HEDGE | B51: =-B57*B44 -> -483.8606282 | C51: =B51+C52 -> -475.2969896 | D51: =C51+D52 -> -495.8538735 | E51: =D51+E52 -> -486.2152762 | F51: =E51+F52 -> -484.013872
A52: ALTER HEDGE | C52: =(C57-B57)*C44 -> 8.563638593 | D52: =(D57-C57)*D44 -> -20.55688384 | E52: =(E57-D57)*E44 -> 9.638597274 | F52: =(F57-E57)*F44 -> 2.201404156
A53: GAIN ROV | C53: =-B50+C50 -> 32.52713334 | D53: =-C50+D50 -> -51.15647515 | E53: =-D50+E50 -> -4.980820516 | F53: =-E50+F50 -> 23.61016232
A54: GAIN V | C54: =-(B51/B44)*(-C44+B44) -> -32.25737521 | D54: =-(C51/C44)*(-D44+C44) -> 29.70606185 | E54: =-(D51/D44)*(-E44+D44) -> 33.0569249 | F54: =-(E51/E44)*(-F44+E44) -> -34.72966258
A55: NET GAIN | C55: =C53+C54 -> 0.2697581264 | D55: =D53+D54 -> -21.4504133 | E55: =E53+E54 -> 28.07610438 | F55: =F53+F54 -> -11.11950026
A56: CUM GAIN | C56: =SUM($C$55:C55) -> 0.2697581264 | D56: =SUM($C$55:D55) -> -21.18065517 | E56: =SUM($C$55:E55) -> 6.895449209 | F56: =SUM($C$55:F55) -> -4.22405105
A57: F'(V) | B57: =IF(B44<B58,B59*B60*(B44^(B60-1)),1) -> 0.6451475043 | C57: =IF(C44<C58,C59*C60*(C44^(C60-1)),1) -> 0.6558520525 | D57: =IF(D44<D58,D59*D60*(D44^(D60-1)),1) -> 0.628442874 | E57: =IF(E44<E58,E59*E60*(E44^(E60-1)),1) -> 0.6422122987 | F57: =IF(F44<F58,F59*F60*(F44^(F60-1)),1) -> 0.6451475043
A58: V* | B58: =(B60/(B60-1))*B45 -> 4183.549772 | C58: =(C60/(C60-1))*C45 -> 4183.549772 | D58: =(D60/(D60-1))*D45 -> 3837.103464 | E58: =(E60/(E60-1))*E45 -> 4361.691572 | F58: =(F60/(F60-1))*F45 -> 4183.549772
A59: A | B59: =(B58-B45)/(B58^B60) -> 0.09504472181 | C59: =(C58-C45)/(C58^C60) -> 0.09504472181 | D59: =(D58-D45)/(D58^D60) -> 0.07436950816 | E59: =(E58-E45)/(E58^E60) -> 0.105898073 | F59: =(F58-F45)/(F58^F60) -> 0.09504472181
A60: b1 | B60: =0.5-(B47-B48)/(B46^2)+SQRT(((B47-B48)/(B46^2)-0.5)^2 + 2*B47/(B46^2)) -> 1.254983444 | C60: =0.5-(C47-C48)/(C46^2)+SQRT(((C47-C48)/(C46^2)-0.5)^2 + 2*C47/(C46^2)) -> 1.254983444 | D60: =0.5-(D47-D48)/(D46^2)+SQRT(((D47-D48)/(D46^2)-0.5)^2 + 2*D47/(D46^2)) -> 1.284556598 | E60: =0.5-(E47-E48)/(E46^2)+SQRT(((E47-E48)/(E46^2)-0.5)^2 + 2*E47/(E46^2)) -> 1.242048592 | F60: =0.5-(F47-F48)/(F46^2)+SQRT(((F47-F48)/(F46^2)-0.5)^2 + 2*F47/(F46^2)) -> 1.254983444
A61: F''(V) | B61: =IF(B44<B58,B59*B60*(B60-1)*(B44^(B60-2)),0) -> 0.0002193359096 | C61: =IF(C44<C58,C59*C60*(C60-1)*(C44^(C60-2)),0) -> 0.0002090392685 | D61: =IF(D44<D58,D59*D60*(D60-1)*(D44^(D60-2)),0) -> 0.0002384367552 | E61: =IF(E44<E58,E59*E60*(E60-1)*(E44^(E60-2)),0) -> 0.0002220665465 | F61: =IF(F44<F58,F59*F60*(F60-1)*(F44^(F60-2)),0) -> 0.0002193359096
A62: V-K | B62: =B44-B45 -> -100 | C62: =C44-C45 -> -50 | D62: =D44-D45 -> -100 | E62: =E44-E45 -> -150 | F62: =F44-F45 -> -100
A64: =A51 -> HEDGE | B64: -B57*B44 | C64: B51+C52
A65: ALTER HEDGE | C65: (C57-B57)*C44
A66: GAIN ROV | C66: -B50+C50
A67: GAIN V | C67: -(B51/B44)*(-C44+B44)
A68: NET GAIN | C68: C53+C54
A69: CUM GAIN | C69: SUM($C$55:C55)
A71: BUY A FIRM OWNING A PERPETUAL AMERICAN REAL CALL OPTION
A72: HEDGE BY SHORTING DELTA OF V BEGINNING OF EACH MONTH. | G72: RISK
A73: RISK BUYING CITY SHS | C73: =C34/$B$30 -> 0.2178742919 | D73: -0.2192173725 | E73: -0.02435748584 | F73: 0 | G73: =STDEV(C73:F73) -> 0.1788422217
A74: RISK CITY SHS HEDGED | C74: -0.07857085599 | D74: 0.07235649808 | E74: 0.080518358 | F74: -0.08459272646 | G74: =STDEV(C74:F74) -> 0.09132636184

Sheet Exercise 5.1
B1: American Perpetual Exchange Option
A2: INPUT | C2: Exercise 5.1
A3: V | B3: 300
A4: K | B4: 273
A5: sV | B5: 0.2
A6: sk | B6: 0.2
A7: dV | B7: 0.04
A8: dk | B8: 0.04
A9: r | B9: 0.5
A10: OUTPUT
A11: F(V,K)=W(Z) | B11: =IF(B17<B16,B13*B4*(B17^B14),B12) -> 82.41758242 | C11: IF(B17<B16,B4*B13*(B17^B14),B12)
A12: V-K | B12: =B3-B4 -> 27 | C12: B3-B4
A13: A | B13: =(B16-1)/(B16^B14) -> 0.25 | C13: (B16-1)/(B16^B14)
A14: b1 | B14: =0.5-(B8-B7)/(B15^2)+SQRT(((B8-B7)/(B15^2)-0.5)^2 + (2*B8)/(B15^2)) -> 2 | C14: 0.5-(B8-B7)/(B15^2)+SQRT(((B8-B7)/(B15^2)-0.5)^2 + (2*B8)/(B15^2))
A15: h | B15: =SQRT(B5^2+B6^2-2*B9*B5*B6) -> 0.2 | C15: SQRT(B5^2+B6^2-2*B9*B5*B6)
A16: Z* | B16: =(B14/(B14-1)) -> 2 | C16: (B14/(B14-1))
A17: Z | B17: =B3/B4 -> 1.098901099 | C17: B3/B4
A18: ODE | B18: =0.5*(B15^2)*(B17^2)*B20+(B8-B7)*B17*B19-B8*B11 -> 0 | C18: 0.5*(B15^2)*(B17^2)*B20+(B8-B7)*B17*B19-B8*B11
A19: W'(Z) | B19: =B4*B13*B14*(B17^(B14-1)) -> 150 | C19: B4*B13*B14*(B17^(B14-1))
A20: W''(Z) | B20: =B4*B13*B14*(B14-1)*(B17^(B14-2)) -> 136.5 | C20: B4*B13*B14*(B14-1)*(B17^(B14-2))
A21: W(Z*) | B21: =B13*B4*((B16^B14)) -> 273 | C21: B13*B4*((B16^B14))
A22: W(Z*) | B22: =(B16-1)*B4 -> 273 | C22: (B16-1)*B4
A23: W'(Z*) | B23: =1 -> 1
A24: W(Z) | B24: =B4*(B16-1)*((B17/B16)^B14) -> 82.41758242 | C24: B4*(B16-1)*((B17/B16)^B14)
A25: Sq Feet | B25: 3000
A26: ROV | B26: =B25*B11 -> 247252.7473 | C26: B25*B11
A27: Z* | B27: =B25*B16*B4 -> 1638000 | C27: B25*B16*B4

Sheet Exercise 5.2
B1: American Perpetual Exchange Option
A2: Exercise 5.2
A3: V | B3: 300000000
A4: K | B4: 300000000
A5: sV | B5: 1.12
A6: sK | B6: 0.95
A7: dV | B7: 0.02
A8: dK | B8: 0.02
A9: r | B9: 0
A10: OUTPUT
A11: W(V,K) | B11: =IF(B17<B16,B4*(B16-1)*(B17/B16)^B14,B13) -> 273813887 | C11: IF(B17<B16,B4*(B16-1)*(B17/B16)^B14,B13)
A12: V-K | B12: =B3-B4 -> 0 | C12: B3-B4
A13: A | B13: =(B16-1)/(B16^B14) -> 0.9127129568 | C13: (B16-1)/(B16^B14)
A14: b1 | B14: =0.5-(B8-B7)/(B15^2)+SQRT(((B8-B7)/(B15^2)-0.5)^2 + (2*B8)/(B15^2)) -> 1.018213406 | C14: 0.5-(B8-B7)/(B15^2)+SQRT(((B8-B7)/(B15^2)-0.5)^2 + (2*B8)/(B15^2))
A15: h | B15: =SQRT(B5^2+B6^2-2*B9*B5*B6) -> 1.468638826 | C15: SQRT(B5^2+B6^2-2*B9*B5*B6)
A16: z* | B16: =(B14/(B14-1)) -> 55.90461239 | C16: (B14/(B14-1))
A17: z | B17: =B3/B4 -> 1 | C17: B3/B4
A19: THE OPTION TO ACQUIRE IS WORTH $273 MILLION, DUE TO THE HIGH
A20: VOLALILITY OF BOTH COMPANIES. DON'T MAKE THE ACQUISITION
A21: UNTIL BLOCKBUSTER IS WORTH $16770 MILLION (WHILE BIOSURGERY
A22: IS WORTH THE CURRENT VALUE OF $300 MILLION).

Sheet Exercise 5.3
A1: American Multi-factor Perpetual Real Option
A2: Exercise 5.3 | B2: Stochastic P & Q
A3: DSP | B3: 1
A4: DS | B4: 2
A5: X | B5: =B3*B4 -> 2 | C5: B3*B4
A6: K | B6: =100*B4 -> 200 | C6: 100*B4
A7: s | B7: 0.2
A8: a | B8: 0.2
A9: r | B9: -0.5
A10: r | B10: 0.04
A11: m | B11: 0.01
A12: w | B12: 0.01
A13: OUTPUT
A14: n | B14: =B10-B11-B12 -> 0.02 | C14: B10-B11-B12
A15: V | B15: =B5/B14 -> 100 | C15: B5/B14
A16: P(P,Q) | B16: =IF(B5<B20,(B6/(B18-1))*((B5/B20)^B18),B17) -> 12.5 | C16: IF(B5<B20,(B6/(B18-1))*((B5/B20)^B18),B17)
A17: V-K | B17: =B15-B6 -> -100 | C17: B15-B6
A18: b1 | B18: =(1/B19^2)*(-(B9*B7*B8+B11+B12-0.5*(B19^2))+SQRT((B9*B7*B8+B11+B12-0.5*(B19^2))^2+(2*B10)*(B19^2))) -> 2
A19: z | B19: =SQRT(B7^2+B8^2+2*B9*B7*B8) -> 0.2 | C19: SQRT(B7^2+B8^2+2*B9*B7*B8)
A20: X* | B20: =B6*B14*(B18/(B18-1)) -> 8 | C20: B6*B14*(B18/(B18-1))
A21: b1 | B21: (1/B19^2)*(-(B9*B7*B8+B11+B12-0.5*(B19^2))+SQRT((B9*B7*B8+B11+B12-0.5*(B19^2))^2+(2*B10)*(B19^2)))
A22: V*-K | B22: =B20/B14-B6 -> 200 | C22: B20/B14-B6
A24: THE VALUE OF THIS OPPORTUNITY IS 12.50, EVEN THOUGH
A25: THE NET PRESENT VALUE IS VERY NEGATIVE.
A26: ROGroupie SHOULD NOT START THIS VENTURE UNTIL
A27: DS*DSP ARE OVER FOUR TIMES CURRENT EXPECTATIONS.

Sheet Problem 5.4
B1: American Perpetual Exchange Option
A2: Problem 5.4
A3: V | B3: 300
A4: K | B4: 273
A5: sV | B5: 0.3
A6: sK | B6: 0.2
A7: dV | B7: 0.03
A8: dK | B8: 0.02
A9: r | B9: 0
A10: SQ FT | B10: 3000
A11: W(V,K) | B11: =IF(B17<B16,B4*(B16-1)*(B17/B16)^B14,B13) -> 138.4834491 | C11: IF(B17<B16,B4*(B16-1)*(B17/B16)^B14,B13)*B10
A12: V-K | B12: =(B3-B4) -> 27 | C12: (B3-B4)*B10
A13: A | B13: =(B16-1)/(B16^B14) -> 0.4454764422 | C13: (B16-1)/(B16^B14)
A14: b1 | B14: =0.5-(B8-B7)/(B15^2)+SQRT(((B8-B7)/(B15^2)-0.5)^2 + (2*B8)/(B15^2)) -> 1.377255848 | C14: 0.5-(B8-B7)/(B15^2)+SQRT(((B8-B7)/(B15^2)-0.5)^2 + (2*B8)/(B15^2))
A15: h | B15: =SQRT(B5^2+B6^2-2*B9*B5*B6) -> 0.3605551275 | C15: SQRT(B5^2+B6^2-2*B9*B5*B6)
A16: z* | B16: =(B14/(B14-1)) -> 3.650721004 | C16: (B14/(B14-1))
A17: z | B17: =B3/B4 -> 1.098901099 | C17: B3/B4
A18: ROV | B18: =B11*B10 -> 415450.3472 | C18: B11*B10
A19: THE OPTION TO BUILD IS WORTH OVER £415,000, DUE TO THE LOW CORRELATION
A20: OF VALUE AND CONSTRUCTION COSTS. DON'T START CONSTRUCTION
A21: UNTIL HOUSE VALUE IS WORTH £2,989,350 (EVEN THOUGH THE
A22: CURRENT INVESTMENT NET PRESENT VALUE IS POSITIVE). NOTE THAT THE
A23: OPTION TO BUILD IS WORTH ALMOST HALF THE CURRENT GROSS VALUE
A24: OF THE HOUSE WERE IT TO BE BUILT TODAY.

Sheet Problem 5.5
B1: American Perpetual Exchange Option
A2: Problem 5.5
A3: V | B3: =20*50/B7 -> 50000
A4: K | B4: 25000
A5: sV | B5: 0.2
A6: sK | B6: 0.2
A7: dV | B7: 0.02
A8: dK | B8: 0.02
A9: r | B9: -0.5
A11: W(V,K) | B11: =IF(B17<B16,B4*(B16-1)*(B17/B16)^B14,B13) -> 31421.51281 | C11: IF(B17<B16,B4*(B16-1)*(B17/B16)^B14,B13)
A12: V-K | B12: =(B3-B4) -> 25000 | C12: B3-B4
A13: A | B13: =(B16-1)/(B16^B14) -> 0.5234276098 | C13: (B16-1)/(B16^B14)
A14: b1 | B14: =0.5-(B8-B7)/(B15^2)+SQRT(((B8-B7)/(B15^2)-0.5)^2 + (2*B8)/(B15^2)) -> 1.263762616 | C14: 0.5-(B8-B7)/(B15^2)+SQRT(((B8-B7)/(B15^2)-0.5)^2 + (2*B8)/(B15^2))
A15: h | B15: =SQRT(B5^2+B6^2-2*B9*B5*B6) -> 0.3464101615 | C15: SQRT(B5^2+B6^2-2*B9*B5*B6)
A16: z* | B16: =(B14/(B14-1)) -> 4.791287847 | C16: (B14/(B14-1))
A17: z | B17: =B3/B4 -> 2 | C17: B3/B4
A19: THE INVESTMENT OPTION IS WORTH $31,422 DUE TO THE HIGH VOLATILITY
A20: OF VALUE AND COSTS, EVEN THOUGH THE NPV IS $25,000. YM MA
A21: SHOULD TAKE UP THE OPTION ESPECIALLY IF THERE IS NO PREMIUM
A22: BUT NOT CONSTRUCT THE GENERATING PLANT
A23: UNTIL V RISES TO $119750 (PERHAPS DUE TO HIGHER
A24: ELECTRICITY PRICES) OR THE COST OF THE PLANT FALLS.
A25: THERE IS AN IMPLICIT ASSUMPTION THAT YM MA WILL LIVE FOREVER.

Sheet Problem 5.6
B1: American Perpetual Exchange Option
A2: Problem 5.6
A3: V | B3: ='Problem 5.5'!B3 -> 50000
A4: K | B4: 10435.60389
A5: sV | B5: ='Problem 5.5'!B5 -> 0.2
A6: sK | B6: ='Problem 5.5'!B6 -> 0.2
A7: dV | B7: ='Problem 5.5'!B7 -> 0.02
A8: dK | B8: ='Problem 5.5'!B8 -> 0.02
A9: r | B9: ='Problem 5.5'!B9 -> -0.5
A11: W(V,K) | B11: =IF(B17<B16,B4*(B16-1)*(B17/B16)^B14,B13) -> 0.5234276098 | C11: IF(B17<B16,B4*(B16-1)*(B17/B16)^B14,B13)
A12: V-K | B12: =(B3-B4) -> 39564.39611 | C12: B3-B4
A13: A | B13: =(B16-1)/(B16^B14) -> 0.5234276098 | C13: (B16-1)/(B16^B14)
A14: b1 | B14: =0.5-(B8-B7)/(B15^2)+SQRT(((B8-B7)/(B15^2)-0.5)^2 + (2*B8)/(B15^2)) -> 1.263762616 | C14: 0.5-(B8-B7)/(B15^2)+SQRT(((B8-B7)/(B15^2)-0.5)^2 + (2*B8)/(B15^2))
A15: h | B15: =SQRT(B5^2+B6^2-2*B9*B5*B6) -> 0.3464101615 | C15: SQRT(B5^2+B6^2-2*B9*B5*B6)
A16: z* | B16: =(B14/(B14-1)) -> 4.791287847 | C16: (B14/(B14-1))
A17: z | B17: =B3/B4 -> 4.791289563 | C17: B3/B4
A18: z*-z | B18: =B16-B17 -> -1.71522129e-06
A19: WHAT INVESTMENT COST SUBSIDY WOULD BRING Z TO 4.79?
A20: USE SOLVER | B20: SET B18, Changing B4.
A21: Subsidy | B21: =25000-B4 -> 14564.39611

Sheet Exercise 10.1
B1: Real Debt Strategy Simple
A2: Exercise10.1
B4: ACCOUNTS | C4: REAL
A5: ASSETS | B5: =B10 -> 100 | C5: =C10-C15*C19*(C19/C10)^-C20 -> 87.5 | D5: C10-C15*C19*(C19/C10)^-C20
A6: DEBT | B6: =B12 -> 100 | C6: =B6+((1-C15)*C19-B6)*(C19/C10)^-C20 -> 62.5 | D6: B6+((1-C15)*C19-B6)*(C19/C10)^-C20
A7: EQ | B7: =B5-B6 -> 0 | C7: =C5-C6 -> 25 | D7: C5-C6
A9: INPUT
A10: NOM V | B10: 100 | C10: =B10 -> 100
A11: Coupon | B11: 4 | C11: =B11 -> 4
A12: NOM Debt | B12: =B11/C17 -> 100 | C12: =B12 -> 100
A13: d | C13: 0.04
A14: s | C14: 0.2
A15: a | C15: 0.5
A16: t | C16: 0
A17: r(f) | C17: 0.04
A18: OUTPUT
A19: VB | C19: =((((1-C16)*C11)/C17))*-C20/(1-C20) -> 50 | D19: (1-C16)*(C11/C17)*(-C20/(-C20+1))
A20: b2 | C20: =(0.5-(C17-C13)/(C14^2)-SQRT((0.5-(C17-C13)/(C14^2))^2+2*C17/(C14^2))) -> -1
A22: b2 | B22: (0.5-(C17-C13)/(C14^2)-SQRT((0.5-(C17-C13)/(C14^2))^2+2*C17/(C14^2)))

Sheet Exercise 10.2
B1: Real Debt Strategy Simple
A2: Exercise10.2
B4: ACCOUNTS | C4: REAL
A5: ASSETS | B5: =B10 -> 100 | C5: =C10-C15*C19*(C19/C10)^-C20 -> 85.18518519 | D5: C10-C15*C19*(C19/C10)^-C20
A6: DEBT | B6: 100 | C6: =B6+((1-C15)*C19-B6)*(C19/C10)^-C20 -> 70.37037037 | D6: B6+((1-C15)*C19-B6)*(C19/C10)^-C20
A7: EQ | B7: =B5-B6 -> 0 | C7: =C5-C6 -> 14.81481481 | D7: C5-C6
A9: INPUT
A10: NOM V | B10: 100 | C10: =B10 -> 100
A11: Coupon | B11: 8 | C11: =B11 -> 8
A12: NOM Debt | B12: =B11/C17 -> 100 | C12: =B12 -> 100
A13: d | C13: 0.06
A14: s | C14: 0.2
A15: a | C15: 0.5
A16: t | C16: 0
A17: r(f) | C17: 0.08
A18: OUTPUT
A19: VB | C19: =((((1-C16)*C11)/C17))*-C20/(1-C20) -> 66.66666667 | D19: (1-C16)*(C11/C17)*(-C20/(-C20+1))
A20: b2 | C20: =(0.5-(C17-C13)/(C14^2)-SQRT((0.5-(C17-C13)/(C14^2))^2+2*C17/(C14^2))) -> -2
A22: b2 | B22: (0.5-(C17-C13)/(C14^2)-SQRT((0.5-(C17-C13)/(C14^2))^2+2*C17/(C14^2)))

Sheet Exercise 10.3
B1: Real Debt Strategy Simple
A2: Exercise10.3
B4: ACCOUNTS | C4: REAL
A5: ASSETS | B5: =B10 -> 200 | C5: =C10-C15*C19*(C19/C10)^-C20 -> 193.75 | D5: C10-C15*C19*(C19/C10)^-C20
A6: DEBT | B6: 100 | C6: =B6+((1-C15)*C19-B6)*(C19/C10)^-C20 -> 81.25 | D6: B6+((1-C15)*C19-B6)*(C19/C10)^-C20
A7: EQ | B7: =B5-B6 -> 100 | C7: =C5-C6 -> 112.5 | D7: C5-C6
A9: INPUT
A10: NOM V | B10: 200 | C10: =B10 -> 200
A11: Coupon | B11: 4 | C11: =B11 -> 4
A12: NOM Debt | B12: =B11/C17 -> 100 | C12: =B12 -> 100
A13: d | C13: 0.04
A14: s | C14: 0.2
A15: a | C15: 0.5
A16: t | C16: 0
A17: r(f) | C17: 0.04
A18: OUTPUT
A19: VB | C19: =((((1-C16)*C11)/C17))*-C20/(1-C20) -> 50 | D19: (1-C16)*(C11/C17)*(-C20/(-C20+1))
A20: b2 | C20: =(0.5-(C17-C13)/(C14^2)-SQRT((0.5-(C17-C13)/(C14^2))^2+2*C17/(C14^2))) -> -1
A22: b2 | B22: (0.5-(C17-C13)/(C14^2)-SQRT((0.5-(C17-C13)/(C14^2))^2+2*C17/(C14^2)))

Sheet Problem 10.4
B1: Real Debt Strategy Simple
A2: Problem10.4
B4: ACCOUNTS | C4: REAL
A5: ASSETS | B5: =B10 -> 100 | C5: =C10+(C16*C11/C17)*(1-(C19/C10)^-C20)-C15*C19*(C19/C10)^-C20 -> 115.4560644 | D5: C10+(C16*C11/C17)*(1-(C19/C10)^-C20)-C15*C19*(C19/C10)^-C20
A6: DEBT | B6: =B11/C17 -> 100 | C6: =B6+((1-C15)*C19-B6)*(C19/C10)^-C20 -> 62.20341392 | D6: B6+((1-C15)*C19-B6)*(C19/C10)^-C20
A7: EQ | B7: =B5-B6 -> 0 | C7: =C5-C6 -> 53.25265049 | D7: C5-C6
A9: INPUT
A10: NOM V | B10: 100 | C10: =B10 -> 100
A11: Coupon | B11: 4 | C11: =B11 -> 4
A12: NOM Debt | B12: =B11/C17 -> 100 | C12: =B12 -> 100
A13: d | C13: 0.04
A14: s | C14: 0.3
A15: a | C15: 0.4
A16: t | C16: 0.35
A17: r(f) | C17: 0.04
A18: OUTPUT
A19: VB | C19: =(1-C16)*(C11/C17)*(-C20/(-C20+1)) -> 23.52442336 | D19: (1-C16)*(C11/C17)*(-C20/(-C20+1))
A20: b2 | C20: =(0.5-(C17-C13)/(C14^2)-SQRT((0.5-(C17-C13)/(C14^2))^2+2*C17/(C14^2))) -> -0.5671873729
A22: b2 | B22: (0.5-(C17-C13)/(C14^2)-SQRT((0.5-(C17-C13)/(C14^2))^2+2*C17/(C14^2)))

Sheet Problem 10.5
B1: Real Debt Strategy
B2: Problem 10.5
A3: BASE CASE
B4: ACCOUNTS | C4: REAL 1 | D4: REAL 2
A5: ASSETS | B5: =B10 -> 100 | C5: =C10+(C16*C11/C17)*(1-(C19/C10)^-C20)-C15*C19*(C19/C10)^-C20 -> 118.5396961 | D5: =D10+(D16*D11/D17)*(1-(D19/D10)^-D20)-D15*D19*(D19/D10)^-D20 -> 122.7150752 | E5: V*
A6: DEBT | B6: =B11/C17 -> 133.3333333 | C6: =(C11/C17)+((1-C15)*C19-(C11/C17))*(C19/C10)^-C20 -> 90.33494244 | D6: =(D11/D17)+((1-D15)*D19-(D11/D17))*(D19/D10)^-D20 -> 94.7017342 | E6: D*
A7: EQ | B7: =B5-B6 -> -33.33333333 | C7: =C5-C6 -> 28.20475365 | D7: =D5-D6 -> 28.01334101 | E7: E*
C8: WE CHOOSE | D8: YOU CHOOSE
A9: Retained Equity | B9: MAX | C9: =C7 -> 28.20475365 | D9: =(1-D24)*D7 -> 28.01334101
A10: NOM V | B10: 100 | C10: =B10 -> 100 | D10: 100
A11: Coupon | B11: 8 | C11: 8 | D11: 8
A12: NOM Debt | B12: =B11/C17 -> 133.3333333 | C12: 133.3333333 | D12: 133.3333333
A13: d | C13: 0.06 | D13: =C13 -> 0.06
A14: s | C14: 0.2 | D14: =C14 -> 0.2
A15: a | C15: 0.5 | D15: =C15 -> 0.5
A16: t | C16: 0.35 | D16: =C16 -> 0.35
A17: r(f) | C17: 0.06 | D17: =C17 -> 0.06
A18: OUTPUT
A19: VB | C19: =(1-C16)*(C11/C17)*(-C20/(-C20+1)) -> 49.03092602 | D19: =$B$6/D23 -> 44.44444444
A20: b2 | C20: =(0.5-(C17-C13)/(C14^2)-SQRT((0.5-(C17-C13)/(C14^2))^2+2*C17/(C14^2))) -> -1.302775638 | D20: =(0.5-(D17-D13)/(D14^2)-SQRT((0.5-(D17-D13)/(D14^2))^2+2*D17/(D14^2))) -> -1.302775638
A21: LTV | B21: =$B$6/B5 -> 1.333333333 | C21: =$B$6/C19 -> 2.719372122 | D21: =$B$6/D19 -> 3
C23: LTV MAX | D23: 3
C24: SHARED EQUITY | D24: 0
A25: DEBT* + SH EQ | C25: =C6 -> 90.33494244 | D25: =D6 -> 94.7017342

Sheet Problem 10.6
F1: Real Debt Strategy i
A2: Problem 10.6
A3: BASE CASE
B4: ACCOUNTS | C4: REAL 1 | D4: REAL 2 | E4: REAL 3 | F4: REAL 4 | G4: REAL 5 | H4: REAL 6 | I4: REAL 7
A5: ASSETS | B5: =B10 -> 40 | C5: =C10+(C16*C11/C17)*(1-(C19/C10)^-C20)-C15*C19*(C19/C10)^-C20 -> 36.25388077 | D5: =D10+(D16*D11/D17)*(1-(D19/D10)^-D20)-D15*D19*(D19/D10)^-D20 -> 43.56084171 | E5: 42.86012627 | F5: 41.86155785 | G5: 41.06040098 | H5: 39.91602229 | I5: 38.99567463 | J5: V*
A6: DEBT | B6: =B11/C17 -> 66.66666667 | C6: =(C11/C17)+((1-C15)*C19-(C11/C17))*(C10^C20)*C19^-C20 -> 34.66860554 | D6: =(D11/D17)+((1-D15)*D19-(D11/D17))*(D10^D20)*D19^-D20 -> 42.41679337 | E6: 41.63089605 | F6: 40.52830025 | G6: 39.65773144 | H6: 38.4347407 | I6: 37.46782871 | J6: D*
A7: EQ | B7: =B5-B6 -> -26.66666667 | C7: =C10-(1-C16)*(C11/C17)+((1-C16)*(C11/C17)-C19)*((C19/C10)^-C20) -> 1.585275236 | D7: =D10-(1-D16)*(D11/D17)+((1-D16)*(D11/D17)-D19)*((D19/D10)^-D20) -> 1.144048337 | E7: 1.229230219 | F7: 1.3332576 | G7: 1.402669537 | H7: 1.481281588 | I7: 1.527845921 | J7: E*
C8: WE CHOOSE | D8: YOU CHOOSE | E8: NEGOTIATE | F8: NEGOTIATE | G8: NEGOTIATE | H8: NEGOTIATE | I8: NEGOTIATE
A9: Retained Equity | C9: =C7 -> 1.585275236 | D9: =(1-D23)*D7 -> 1.144048337 | E9: 1.216937917 | F9: 1.306592448 | G9: 1.36058945 | H9: 1.422030324 | I9: 1.451453625
A10: NOM V | B10: 40 | C10: =B10 -> 40 | D10: =C10 -> 40 | E10: =D10 -> 40 | F10: 40 | G10: =B10 -> 40 | H10: 40 | I10: 40
A11: Coupon | B11: 4 | C11: =B11 -> 4 | D11: =C11 -> 4 | E11: 4 | F11: 4 | G11: 4 | H11: 4 | I11: 4
A12: NOM Debt | B12: =B11/C17 -> 66.66666667 | C12: 66.66666667 | D12: =C12 -> 66.66666667 | E12: 66.66666667 | F12: 66.66666667 | G12: 66.66666667 | H12: 66.66666667 | I12: 66.66666667
A13: d | C13: 0.01 | D13: =C13 -> 0.01 | E13: 0.01 | F13: 0.01 | G13: 0.01 | H13: 0.01 | I13: 0.01
A14: s | C14: 0.2 | D14: =C14 -> 0.2 | E14: 0.2 | F14: 0.2 | G14: 0.2 | H14: 0.2 | I14: 0.2
A15: a | C15: 0.5 | D15: =C15 -> 0.5 | E15: 0.5 | F15: 0.5 | G15: 0.5 | H15: 0.5 | I15: 0.5
A16: t | C16: 0.3 | D16: 0.3 | E16: 0.3 | F16: 0.3 | G16: 0.3 | H16: 0.3 | I16: 0.3
A17: r(f) | C17: 0.06 | D17: 0.06 | E17: 0.06 | F17: 0.06 | G17: 0.06 | H17: 0.06 | I17: 0.06
A18: OUTPUT
A19: VB | C19: =(1-C16)*(C11/C17)*(-C20/(-C20+1)) -> 33.83719651 | D19: =$B$6/D22 -> 30.03003003 | E19: =$B$6/E22 -> 30.4414003 | F19: 31.00775194 | G19: 31.44654088 | H19: 32.05128205 | I19: 32.5203252
A20: b2 | C20: =(0.5-(C17-C13)/(C14^2)-SQRT((0.5-(C17-C13)/(C14^2))^2+2*C17/(C14^2))) -> -2.637458609 | D20: =(0.5-(D17-D13)/(D14^2)-SQRT((0.5-(D17-D13)/(D14^2))^2+2*D17/(D14^2))) -> -2.637458609 | E20: -2.637458609 | F20: -2.637458609 | G20: -2.637458609 | H20: -2.637458609 | I20: -2.637458609
A21: LTV | B21: =$B$12/B5 -> 1.666666667 | C21: =$B$12/C5 -> 1.838883597 | D21: =$B$12/D5 -> 1.530426504 | E21: 1.555447276 | F21: 1.59255102 | G21: 1.623624346 | H21: 1.6701731 | I21: 1.709591315
C22: LTV MAX | D22: 2.22 | E22: 2.19 | F22: 2.15 | G22: 2.12 | H22: 2.08 | I22: 2.05
C23: SHARED EQUITY | D23: 0 | E23: 0.01 | F23: =E23+0.01 -> 0.02 | G23: =F23+0.01 -> 0.03 | H23: 0.04 | I23: 0.05
A24: DEBT LOSS + SH EQ | B24: =$B$6-(1-C15)*B10 -> 46.66666667 | C24: =$B$6-C6 -> 31.99806113 | D24: =$B$6-D6+D23*D7 -> 24.2498733 | E24: =$B$6-E6+E23*E7 -> 25.04806292 | F24: 26.16503157 | G24: 27.05101531 | H24: 28.29117723 | I24: 29.27523025
A25: CHANGE DEBT LOSS | C25: =C24-$B$24 -> -14.66860554 | D25: -22.41679337 | E25: -21.61860375 | F25: -20.5016351 | G25: -19.61565135 | H25: -18.37548943 | I25: -17.39143641
A26: LTV | D26: $B$12/D5
A27: VB | D27: $B$6/D22
A28: DEBT LOSS + SH EQ | C28: $B$6-C6 | D28: $B$6-D6+D23*D7
A29: CHANGE DEBT LOSS | C29: C24-$B$24

Sheet Exercise 12.1
A1: Continuous American Perpetual SINGLE SWITCH Option
A2: ONE WAY SWITCH FROM OUTPUT x TO y | D2: EXERCISE 12.1
A3: OUTPUT x RO | B3: x | C3: 1
A4: OUTPUT y IA | B4: y | C4: 1
A5: Convenience yield of x | B5: δx | C5: 0.05
A6: Convenience yield of y | B6: δy | C6: 0.05
A7: Volatility of x | B7: σx | C7: 0.1
A8: Volatility of y | B8: σy | C8: 0.1
A9: Correlation x with y | B9: ρ | C9: 0
A10: Risk-free interest rate | B10: r | C10: 0.05
A11: Operating cost for x | B11: cx | C11: 0
A12: Operating cost for y | B12: cy | C12: 0
A13: Switching cost from x to y | B13: S12 | C13: 0.2
A15: PV of revenues x | B15: X | C15: =(C3/C5-C11/C10) -> 20
A16: PV of revenues y | B16: Y | C16: =(C4/C6-C12/C10) -> 20
A17: Switching boundary x to y | B17: x12 | C17: =C3 -> 1
B19: SOLUTION | D19: OPTION VALUE
A20: Asset value in operating mode '1' | B20: V1(x,y) | C20: =C3/C5-C11/C10+C22*C3^C24*C4^C25 -> 23.16711458 | D20: =C20-C15 -> 3.167114579
A21: Asset value in operating mode '2' | B21: V2(x,y) | C21: =C4/C6-C12/C10 -> 20 | D21: =C21-C16 -> 0
B22: A | C22: 3.167114579
A23: Switching boundary x to y | B23: y12 (x) | C23: 1.571054281
A24: Solution quadrant | B24: β11 | C24: -1.782358725 | D24: must be negative
A25: Solution quadrant | B25: β12 | C25: 2.800182309 | D25: must be positive
B26: EQUATIONS | D26: REVISED EQS
A27: Value matching 1 | B27: EQ 19 | C27: =(C22*C23^C25+C17/C5-C11/C10-C23/C6+C12/C10+C13) -> 1.786482795e-09 | D27: (C22*C23^C25+C17/C5-C11/C10-C23/C6+C12/C10+C13)
A28: Smooth pasting 1A | B28: EQ 20 | C28: =(C24*C22*C23^C25+1/C5) -> 1.484538998e-07 | D28: (C24*C22*C23^C25+1/C5)
A29: Smooth pasting 1B | B29: EQ 21 | C29: =(C25*C22*C23^(C25-1)-1/C6) -> -1.125358899e-07 | D29: (C25*C22*C23^(C25-1)-1/C6)
A30: Solution quadrant 1 | B30: EQ 22 | C30: =0.5*C7^2*C24*(C24-1)+0.5*C8^2*C25*(C25-1)-C10 -> 2.18341456e-11 | D30: 0.5*C7^2*C24*(C24-1)+0.5*C8^2*C25*(C25-1)-C10
B31: Sum | C31: =SUM(ABS(C27:C30)) -> 2.627981067e-07
B32: SOLVER: SET C31=0, CHANGING C22:C25
A33: =B27 -> EQ 19 | B33: (C22*C17^C24*C23^C25+C17/C5-C11/C10-C23/C6+C12/C10+C13)
A34: =B28 -> EQ 20 | B34: (C24*C22*C17^(C24-1)*C23^C25+1/C5)
A35: =B29 -> EQ 21 | B35: (C25*C22*C17^C24*C23^(C25-1)-1/C6)
A36: =B30 -> EQ 22 | B36: 0.5*C7^2*C24*(C24-1)+0.5*C8^2*C25*(C25-1)+C9*C7*C8*C24*C25+C24*(C10-C5)+C25*(C10-C6)-C10
A37: SPREAD | C37: =C23-C4 -> 0.5710542808
A38: V1(x,y) EQ 5 | B38: C3/C5-C11/C10+C22*C3^C24*C4^C25
A39: V2(x,y) EQ 7 | B39: C4/C6-C12/C10
A40: PDE | C40: =0.5*(C7^2)*(C3^2)*C43+0.5*(C8^2)*(C4^2)*C44+C9*C7*C8*C3*C4*C45+(C10-C5)*C3*C41+(C10-C6)*C4*C42-C10*C20+(C3-C11) -> 6.915112927e-11
A41: DROV1,x | C41: =C24*C22*(C3^(C24-1))*(C4^C25)+1/C5 -> 14.3550657 | D41: C24*C22*(C3^(C24-1))*(C4^C25)+1/C5
A42: DROV1,y | C42: =C25*C22*(C3^C24)*(C4^(C25-1)) -> 8.868498216 | D42: C25*C22*(C3^C24)*(C4^(C25-1))
A43: GROV1, x | C43: =C24*(C24-1)*C22*(C3^(C24-2))*(C4^C25) -> 15.7062322 | D43: C24*(C24-1)*C22*(C3^(C24-2))*(C4^C25)
A44: GROV1,y | C44: =C25*(C25-1)*C22*(C3^C24)*(C4^(C25-2)) -> 15.9649136 | D44: C25*(C25-1)*C22*(C3^C24)*(C4^(C25-2))
A45: GROV1,x,y | C45: =C24*C25*C22*(C3^(C24-1))*(C4^(C25-1)) -> -15.80684517 | D45: C24*C25*C22*(C3^(C24-1))*(C4^(C25-1))
A46: 0.5*(C7^2)*(C3^2)*C43+0.5*(C8^2)*(C4^2)*C44+C9*C7*C8*C3*C4*C45+(C10-C5)*C3*C41+(C10-C6)*C4*C42-C10*C20+(C3-C11)
B47: CALCULATOR ANSWER
B48: y12 (x) | C48: =-C25/C24 -> 1.571054284 | D48: =(C23^C25)/(C23^(C25-1)) -> 1.571054281
C49: -C25/C24 | D49: (C23^C25)/(C23^(C25-1))
B50: A | C50: =(-1/C5)/(C24*(C17^(C24-1))*C48^C25) -> 3.167114586
C51: (-1/C5)/(C24*(C17^(C24-1))*C48^C25)
B52: V1(x,y) | C52: =C3/C5-C11/C10+C22*C3^C24*C4^C25 -> 23.16711458
C53: C3/C5-C11/C10+C22*C3^C24*C4^C25
A55: INTERPRETATION | B55: Switch from RO (x) to IA (y) if y=1.57 while x=1.
B56: The current value of taking RO is 23.17, since there is an embedded option to
B57: switch once to IA.
B58: Switching now would involve giving up 23.17 for IA worth 20,
B59: since there is no option to switch back.

Sheet Exercise 12.2
A1: SINGLE American Perpetual IN-OUT SWITCH Option
A2: Exercise 12.2 | B2: INPUT
A3: PRICE Yarn | B3: x | C3: 10
A4: COST Cotton | B4: y | C4: 9
A5: Convenience yield of x | B5: δx | C5: 0.04
A6: Convenience yield of y | B6: δy | C6: 0.04
A7: Volatility of x | B7: σx | C7: 0.4
A8: Volatility of y | B8: σy | C8: 0.4
A9: Correlation x with y | B9: ρ | C9: 0.5
A10: Risk-free interest rate | B10: r | C10: 0.05
A11: Switching cost from x to y | B11: S12 | C11: 10
A12: Switching boundary OP to SHUT | B12: x12 | C12: =C3 -> 10
B13: SOLUTION | D13: OPTION | E13: OPERATING
A14: Asset value in operating mode | B14: V1(x,y) | C14: =(C15*C3^C17*C4^C18+C3/C5-C4/C6) -> 121.207746 | D14: =(C15*C3^C17*C4^C18) -> 96.20774603 | E14: =C3/C5-C4/C6 -> 25
B15: A | C15: 10.75602123
A16: Switching boundary OP to SHUT | B16: y12 (x) | C16: 38.6691616 | D16: =-C18*C12/C17 -> 38.6691613
A17: Solution quadrant | B17: β11 | C17: -0.3537423668 | D17: must be negative
A18: Solution quadrant | B18: β12 | C18: 1.367892064 | D18: must be positive
B19: EQUATIONS
A20: Value matching 1 | B20: EQ 35 | C20: =(C15*C12^C17*C16^C18+C12/C5-C16/C6+C11) -> -4.696187261e-07
A21: Smooth pasting 1A | B21: EQ 36 | C21: =(C17*C15*(C12^(C17-1))*C16^C18+1/C5) -> -3.10921731e-07
A22: Smooth pasting 1B | B22: EQ 37 | C22: =(C18*C15*C12^C17*(C16^(C18-1))-1/C6) -> 1.203717588e-07
A23: Solution quadrant 1 | B23: EQ 38 | C23: =0.5*C7^2*C17*(C17-1)+0.5*C8^2*C18*(C18-1)+C9*C7*C8*C17*C18+C17*(C10-C5)+C18*(C10-C6)-C10 -> -1.965685253e-11
B24: Sum | C24: =SUM(ABS(C20:C23)) -> 9.009318728e-07
B25: SOLVER: SET C24=0, CHANGING C15:C18
A26: SPREAD | C26: =C16-C4 -> 29.6691616
A27: V1(x,y) | B27: (C15*C3^C17*C4^C18+C3/C5-C4/C6)
A28: =B20 -> EQ 35 | B28: (C15*C12^C17*C16^C18+C12/C5-C16/C6+C11)
A29: =B21 -> EQ 36 | B29: (C17*C15*(C12^(C17-1))*C16^C18+1/C5)
A30: =B22 -> EQ 37 | B30: (C18*C15*C12^C17*(C16^(C18-1))-1/C6)
A31: =B23 -> EQ 38 | B31: 0.5*C7^2*C17*(C17-1)+0.5*C8^2*C18*(C18-1)+C9*C7*C8*C17*C18+C17*(C10-C5)+C18*(C10-C6)-C10
A32: PDE | C32: =0.5*(C7^2)*(C3^2)*C35+0.5*(C8^2)*(C4^2)*C36+C9*C7*C8*C3*C4*C37+(C10-C5)*C3*C33+(C10-C6)*C4*C34-C10*C14+(C3-C4) -> -1.891141466e-09
A33: DROV1,x | C33: =C15*C17*(C3^(C17-1))*(C4^C18)+1/C5 -> 21.59672442 | D33: C15*C17*(C3^(C17-1))*(C4^C18)+1/C5
A34: DROV1,y | C34: =C15*C18*(C3^(C17))*(C4^(C18-1))-1/C6 -> -10.37757641 | D34: C15*C18*(C3^(C17))*(C4^(C18-1))-1/C6
A35: GROV1, x | C35: =C15*C17*(C17-1)*(C3^(C17-2))*(C4^C18) -> 0.4607158337 | D35: C15*C17*(C17-1)*(C3^(C17-2))*(C4^C18)
A36: GROV1,y | C36: =C15*C18*(C18-1)*(C3^(C17))*(C4^(C18-2)) -> 0.5977192886 | D36: C15*C18*(C18-1)*(C3^(C17))*(C4^(C18-2))
A37: GROV1,x,y | C37: =C15*C17*C18*(C3^(C17-1))*(C4^(C18-1)) -> -0.5172570729 | D37: C15*C17*C18*(C3^(C17-1))*(C4^(C18-1))
A38: 0.5*(C7^2)*(C3^2)*C35+0.5*(C8^2)*(C4^2)*C36+C9*C7*C8*C3*C4*C37+(C10-C5)*C3*C33+(C10-C6)*C4*C34-C10*C14+(C3-C4)
B39: CALCULATOR ANSWER
B40: y12 (x) | C40: =-C18*C12/C17 -> 38.6691613
C41: -C18*C12/C17
B42: A | C42: =(-1/C5)/(C17*(C12^(C17-1))*C16^C18) -> 10.7560211
C43: (-1/C5)/(C17*(C12^(C17-1))*C16^C18)
B44: V1(x,y) | C44: =C3/C5-C4/C6+C42*C3^C17*C4^C18 -> 121.2077448
C45: C3/C5-C4/C6+C42*C3^C17*C4^C18
A46: INTERPRETATION | B46: Switch from active when yarn=10, cotton=9 to permanent shutdown if y=38.67 while x=10.
B47: The current value of the mill with its embedded shut-down option is 121.21
B48: with a small current operating value of 25, and a large abandonment option value.
B50: since there is no option to switch back.

Sheet Exercise 12.3
A1: Continuous American Perpetual SINGLE SWITCH Option
A2: ONE WAY SWITCH FROM INPUT x TO y | D2: Exercise 12.3
A3: INPUT x canola | B3: x | C3: 1
A4: INPUT y palm oil | B4: y | C4: 1
A5: Convenience yield of x | B5: δx | C5: 0.04
A6: Convenience yield of y | B6: δy | C6: 0.04
A7: Volatility of x | B7: σx | C7: 0.2
A8: Volatility of y | B8: σy | C8: 0.2
A9: Correlation x with y | B9: ρ | C9: 0.5
A10: Risk-free interest rate | B10: r | C10: 0.05
A11: Output price for x | B11: px | C11: 3
A12: Output price for y | B12: py | C12: 3
A13: Switching cost from x to y | B13: S12 | C13: 1
A15: PV of revenues using x | B15: X | C15: =(-C3/C5+C11/C10) -> 35
A16: PV of revenues using y | B16: Y | C16: =(-C4/C6+C12/C10) -> 35
A17: Switching boundary x to y | B17: x12 | C17: =C3 -> 1
B19: SOLUTION | D19: OPTION VALUE
A20: Asset value in operating mode '1' | B20: V1(x,y) | C20: =-C3/C5+C11/C10+C22*C3^C24*C4^C25 -> 41.06643519 | D20: =C20-C15 -> 6.066435191
A21: Asset value in operating mode '2' | B21: V2(x,y) | C21: =-C4/C6+C12/C10 -> 35
B22: A | C22: 6.066435191
A23: Switching boundary x to y | B23: y12 (x) | C23: 0.4628627168
A24: Solution quadrant | B24: β11 | C24: 2.01151681 | D24: must be positive
A25: Solution quadrant | B25: β12 | C25: -0.9310561355 | D25: must be negative
B26: EQUATIONS
A27: Value matching 1 | B27: EQ 53 | C27: =C22*C17^C24*C23^C25-C17/C5+C11/C10+C23/C6-C12/C10+C13 -> 1.973138808e-08
A28: Smooth pasting 1A | B28: EQ 54 | C28: =C24*C22*C17^(C24-1)*C23^C25-1/C5 -> 8.565610088e-08
A29: Smooth pasting 1B | B29: EQ 55 | C29: =C25*C22*C17^C24*C23^(C25-1)+1/C6 -> -8.887451841e-08
A30: Solution quadrant 1 | B30: EQ 56 | C30: =0.5*C7^2*C24*(C24-1)+0.5*C8^2*C25*(C25-1)+C9*C7*C8*C24*C25+C24*(C10-C5)+C25*(C10-C6)-C10 -> -3.02978545e-11
B31: Sum | C31: =SUM(ABS(C27:C30)) -> 1.942923052e-07
B32: SOLVER: SET C31=0, CHANGING C22:C25
A33: EQ 53 | B33: C22*C17^C24*C23^C25-C17/C5+C11/C10+C23/C6-C12/C10+C13
A34: EQ 54 | B34: C24*C22*C17^(C24-1)*C23^C25-1/C5
A35: EQ 55 | B35: C25*C22*C17^C24*C23^(C25-1)+1/C6
A36: EQ 56 | B36: 0.5*C7^2*C24*(C24-1)+0.5*C8^2*C25*(C25-1)+C9*C7*C8*C24*C25+C24*(C10-C5)+C25*(C10-C6)-C10
A37: SPREAD | C37: =-C23+C4 -> 0.5371372832
A38: V1(x,y) | B38: -C3/C5+C11/C10+C22*C3^C24*C4^C25
A39: V2(x,y) | B39: -C4/C6+C12/C10
A40: PDE | C40: =0.5*(C7^2)*(C3^2)*C43+0.5*(C8^2)*(C4^2)*C44+C9*C7*C8*C3*C4*C45+(C10-C5)*C3*C41+(C10-C6)*C4*C42-C10*C20+(C11-C3) -> -1.838000863e-10
A41: DROV1,x | C41: =C24*C22*(C3^(C24-1))*(C4^C25)-1/C5 -> -12.79726364 | D41: C24*C22*(C3^(C24-1))*(C4^C25)-1/C5
A42: DROV1,y | C42: =C25*C22*(C3^C24)*(C4^(C25-1)) -> -5.648191705 | D42: C25*C22*(C3^C24)*(C4^(C25-1))
A43: GROV1, x | C43: =C24*(C24-1)*C22*(C3^(C24-2))*(C4^C25) -> 12.34327295 | D43: C24*(C24-1)*C22*(C3^(C24-2))*(C4^C25)
A44: GROV1,y | C44: =C25*(C25-1)*C22*(C3^C24)*(C4^(C25-2)) -> 10.90697525 | D44: C25*(C25-1)*C22*(C3^C24)*(C4^(C25-2))
A45: GROV1,x,y | C45: =C24*C25*C22*(C3^(C24-1))*(C4^(C25-1)) -> -11.36143256 | D45: C24*C25*C22*(C3^(C24-1))*(C4^(C25-1))
A46: 0.5*(C7^2)*(C3^2)*C43+0.5*(C8^2)*(C4^2)*C44+C9*C7*C8*C3*C4*C45+(C10-C5)*C3*C41+(C10-C6)*C4*C42-C10*C20+(C11-C3)
B47: CALCULATOR ANSWER
B48: y12 (x) | C48: =-C25/C24 -> 0.4628627169 | D48: -C25/C24
B49: V1(x,y) | C49: =-C3/C5+C11/C10+6.07*C3^C24*C4^C25 -> 41.07 | D49: -C3/C5+C11/C10+6.07*C3^C24*C4^C25
A50: INTERPRETATION | B50: Switch from canola (x) to palm oil (y) if y=.46 while x is still 1.
B51: The current value of this flexible factility is 41.07 which is the current
B52: operating value of 35 plus the switch option value of 6.07.
B53: Switching now would involve giving up the option value for the same operating value.
B54: since there is no option to switch back.

Sheet Problem 12.4
A1: Continuous American Perpetual SINGLE SWITCH Option
A2: ONE WAY SWITCH FROM OUTPUT x TO y | C2: PROBLEM 12.4
A3: OUTPUT x Edward | B3: x | C3: 7000
A4: OUTPUT y Robert | B4: y | C4: 10000
A5: Convenience yield of x | B5: δx | C5: 0.04
A6: Convenience yield of y | B6: δy | C6: 0.04
A7: Volatility of x | B7: σx | C7: 0.2
A8: Volatility of y | B8: σy | C8: 0.2
A9: Correlation x with y | B9: ρ | C9: 0
A10: Risk-free interest rate | B10: r | C10: 0.05
A11: Operating cost for x | B11: cx | C11: 0
A12: Operating cost for y | B12: cy | C12: 0
A13: Switching cost from x to y | B13: S12 | C13: 3000
A15: PV of revenues x | B15: X | C15: =(C3/C5-C11/C10) -> 175000 | D15: LHS EQ5
A16: PV of revenues y | B16: Y | C16: =(C4/C6-C12/C10) -> 250000 | D16: LHS EQ 7
A17: Switching boundary x to y | B17: x12 | C17: =C3 -> 7000
B19: SOLUTION | D19: OPTION VALUE
A20: Asset value in operating mode '1' | B20: V1(x,y) | C20: =C3/C5-C11/C10+C22*C3^C24*C4^C25 -> 279883.7216 | D20: =C20-C15 -> 104883.7216
A21: Asset value in operating mode '2' | B21: V2(x,y) | C21: =C4/C6-C12/C10 -> 250000 | D21: =C21-C16 -> 0
B22: A | C22: 7.656500424
A23: Switching boundary x to y | B23: y12 (x) | C23: 18565.2674
A24: Solution quadrant | B24: β11 | C24: -0.6116065056 | D24: must be negative
A25: Solution quadrant | B25: β12 | C25: 1.622091189 | D25: must be positive
B26: EQUATIONS
A27: Value matching 1 | B27: EQ 19 | C27: =(C22*C17^C24*C23^C25+C17/C5-C11/C10-C23/C6+C12/C10+C13) -> 1.34401489e-07
A28: Smooth pasting 1A | B28: EQ 20 | C28: =(C24*C22*C17^(C24-1)*C23^C25+1/C5) -> -8.039791055e-12
A29: Smooth pasting 1B | B29: EQ 21 | C29: =(C25*C22*C17^C24*C23^(C25-1)-1/C6) -> 1.116262638e-11
A30: Solution quadrant 1 | B30: EQ 22 | C30: =0.5*C7^2*C24*(C24-1)+0.5*C8^2*C25*(C25-1)+C9*C7*C8*C24*C25+C24*(C10-C5)+C25*(C10-C6)-C10 -> 3.60822483e-16
B31: Sum | C31: =SUM(ABS(C27:C30)) -> 1.344206918e-07
B32: SOLVER: SET C31=0, CHANGING C22:C25
A33: =B27 -> EQ 19 | B33: (C22*C17^C24*C23^C25+C17/C5-C11/C10-C23/C6+C12/C10+C13)
A34: =B28 -> EQ 20 | B34: (C24*C22*C17^(C24-1)*C23^C25+1/C5)
A35: =B29 -> EQ 21 | B35: (C25*C22*C17^C24*C23^(C25-1)-1/C6)
A36: =B30 -> EQ 22 | B36: 0.5*C7^2*C24*(C24-1)+0.5*C8^2*C25*(C25-1)+C9*C7*C8*C24*C25+C24*(C10-C5)+C25*(C10-C6)-C10
A37: SPREAD | C37: =C23-C4 -> 8565.267401
A38: V1(x,y) EQ 5 | B38: C3/C5-C11/C10+C22*C3^C24*C4^C25
A39: V2(x,y) EQ 7 | B39: C4/C6-C12/C10
A40: PDE | C40: =0.5*(C7^2)*(C3^2)*C43+0.5*(C8^2)*(C4^2)*C44+C9*C7*C8*C3*C4*C45+(C10-C5)*C3*C41+(C10-C6)*C4*C42-C10*C20+(C3-C11) -> 3.092281986e-11
A41: DROV1,x | C41: =C24*C22*(C3^(C24-1))*(C4^C25)+1/C5 -> 15.83606193 | D41: C24*C22*(C3^(C24-1))*(C4^C25)+1/C5
A42: DROV1,y | C42: =C25*C22*(C3^C24)*(C4^(C25-1)) -> 17.01309607 | D42: C25*C22*(C3^C24)*(C4^(C25-1))
A43: GROV1, x | C43: =C24*(C24-1)*C22*(C3^(C24-2))*(C4^C25) -> 0.002109808887 | D43: C24*(C24-1)*C22*(C3^(C24-2))*(C4^C25)
A44: GROV1,y | C44: =C25*(C25-1)*C22*(C3^C24)*(C4^(C25-2)) -> 0.001058369715 | D44: C25*(C25-1)*C22*(C3^C24)*(C4^(C25-2))
A45: GROV1,x,y | C45: =C24*C25*C22*(C3^(C24-1))*(C4^(C25-1)) -> -0.001486474319 | D45: C24*C25*C22*(C3^(C24-1))*(C4^(C25-1))
A46: 0.5*(C7^2)*(C3^2)*C43+0.5*(C8^2)*(C4^2)*C44+C9*C7*C8*C3*C4*C45+(C10-C5)*C3*C41+(C10-C6)*C4*C42-C10*C20+(C3-C11)
A47: INTERPRETATION | B47: Lucy should switch from Edward to Robert once, when Robert's annual income
B48: is 18,565 or 85% more than currently.
B49: Switching now would involve giving up a value of 279,883 for 250,000,
B50: since there is no option to switch back.
B51: This assumes Lucy gets all of Robert's income, and both live forever.
B52: Considering Lucy's wile, the first assumption might not be unrealistic,
B53: and since these are fictional characters, immortality is a possibility,
B54: so since Jane Austin is still polular after almost 200 years.

Sheet Problem 12.5
A1: Continuous American Perpetual SINGLE SWITCH Option
A2: ONE WAY SWITCH FROM OUTPUT x TO y | D2: PROBLEM 12.5
A3: OUTPUT x Willoughby | B3: x | C3: 1
A4: OUTPUT y Colonel Brandon | B4: y | C4: 1
A5: Convenience yield of x | B5: δx | C5: 0.05
A6: Convenience yield of y | B6: δy | C6: 0.05
A7: Volatility of x | B7: σx | C7: 0.1
A8: Volatility of y | B8: σy | C8: 0.1
A9: Correlation x with y | B9: ρ | C9: 0
A10: Risk-free interest rate | B10: r | C10: 0.05
A11: Operating cost for x | B11: cx | C11: 0
A12: Operating cost for y | B12: cy | C12: 0
A13: Switching cost from x to y | B13: S12 | C13: 1
A14: Switching cost from y to x | B14: S21
A15: PV of revenues x | B15: X | C15: =(C3/C5-C11/C10) -> 20
A16: PV of revenues y | B16: Y | C16: =(C4/C6-C12/C10) -> 20
A17: Switching boundary x to y | B17: x12 | C17: =C3 -> 1
B19: SOLUTION | D19: OPTION VALUE
A20: Asset value in operating mode '1' | B20: V1(x,y) | C20: =C3/C5-C11/C10+C22*C3^C24*C4^C25 -> 22.90419765 | D20: =C20-C15 -> 2.904197648
A21: Asset value in operating mode '2' | B21: V2(x,y) | C21: =C4/C6-C12/C10 -> 20 | D21: =C21-C16 -> 0
B22: A | C22: 2.904197648
A23: Switching boundary x to y | B23: y12 (x) | C23: 1.622347121 | E23: =-(C25/C24) -> 1.622347076
A24: Solution quadrant | B24: β11 | C24: -1.747191654 | D24: must be negative
A25: Solution quadrant | B25: β12 | C25: 2.834551271 | D25: must be positive
B26: EQUATIONS
A27: Value matching 1 | B27: EQ 19 | C27: =(C22*C17^C24*C23^C25+C17/C5-C11/C10-C23/C6+C12/C10+C13) -> -8.763918302e-08
A28: Smooth pasting 1A | B28: EQ 20 | C28: =(C24*C22*C17^(C24-1)*C23^C25+1/C5) -> -2.118687974e-06
A29: Smooth pasting 1B | B29: EQ 21 | C29: =(C25*C22*C17^C24*C23^(C25-1)-1/C6) -> 1.561961849e-06
A30: Solution quadrant 1 | B30: EQ 22 | C30: =0.5*C7^2*C24*(C24-1)+0.5*C8^2*C25*(C25-1)+C9*C7*C8*C24*C25+C24*(C10-C5)+C25*(C10-C6)-C10 -> -1.712415626e-10
B31: Sum | C31: =SUM(ABS(C27:C30)) -> 3.768460247e-06
B32: SOLVER: SET C31=0, CHANGING C22:C25
A33: =B27 -> EQ 19 | B33: (C22*C17^C24*C23^C25+C17/C5-C11/C10-C23/C6+C12/C10+C13)
A34: =B28 -> EQ 20 | B34: (C24*C22*C17^(C24-1)*C23^C25+1/C5)
A35: =B29 -> EQ 21 | B35: (C25*C22*C17^C24*C23^(C25-1)-1/C6)
A36: =B30 -> EQ 22 | B36: 0.5*C7^2*C24*(C24-1)+0.5*C8^2*C25*(C25-1)+C9*C7*C8*C24*C25+C24*(C10-C5)+C25*(C10-C6)-C10
A37: SPREAD | C37: =C23-C4 -> 0.6223471214
A38: V1(x,y) EQ 5 | B38: C3/C5-C11/C10+C22*C3^C24*C4^C25
A39: V2(x,y) EQ 7 | B39: C4/C6-C12/C10
A40: PDE | C40: =0.5*(C7^2)*(C3^2)*C43+0.5*(C8^2)*(C4^2)*C44+C9*C7*C8*C3*C4*C45+(C10-C5)*C3*C41+(C10-C6)*C4*C42-C10*C20+(C3-C11) -> -4.973192969e-10
A41: DROV1,x | C41: =C24*C22*(C3^(C24-1))*(C4^C25)+1/C5 -> 14.92581011 | D41: C24*C22*(C3^(C24-1))*(C4^C25)+1/C5
A42: DROV1,y | C42: =C25*C22*(C3^C24)*(C4^(C25-1)) -> 8.232097134 | D42: C25*C22*(C3^C24)*(C4^(C25-1))
A43: GROV1, x | C43: =C24*(C24-1)*C22*(C3^(C24-2))*(C4^C25) -> 13.93977212 | D43: C24*(C24-1)*C22*(C3^(C24-2))*(C4^C25)
A44: GROV1,y | C44: =C25*(C25-1)*C22*(C3^C24)*(C4^(C25-2)) -> 15.10220426 | D44: C25*(C25-1)*C22*(C3^C24)*(C4^(C25-2))
A45: GROV1,x,y | C45: =C24*C25*C22*(C3^(C24-1))*(C4^(C25-1)) -> -14.3830514 | D45: C24*C25*C22*(C3^(C24-1))*(C4^(C25-1))
A46: 0.5*(C7^2)*(C3^2)*C43+0.5*(C8^2)*(C4^2)*C44+C9*C7*C8*C3*C4*C45+(C10-C5)*C3*C41+(C10-C6)*C4*C42-C10*C20+(C3-C11)
A47: INTERPRETATION | B47: Marianne should switch from Willoughby to Colonel Brandon once,
B48: when Brandon's annual income is greater than 1.62.
B49: Switching now would involve giving up a value of 22.90 for 20,
B50: since there is no option to switch back.
B51: This assumes Marianne gets all of Robert's income, and both live forever.
B52: Considering Marianne's beauty, the first assumption might not be unrealistic,
B53: and since these are fictional characters, immortality is a possibility,
B54: since Jane Austin is still polular after almost 200 years.
B55: Marianne may not be solely interested in money.
B56: CALCULATOR ANSWER
B57: y12 (x) | C57: =-C25*C17/C24 -> 1.622347076
C58: -C25*C17/C24
B59: A | C59: =(-1/C5)/(C24*(C17^(C24-1))*(C57^C25)) -> 2.904197569
B60: (-1/C25)/(C24*(C17^(C24-1))*C56^C25)
B61: V1(x,y) | C61: =C59*C3^C24*C4^C25 -> 2.904197569
B62: C44*C3^C24*C4^C25

Sheet Problem 12.6
A1: Multiple American Perpetual Input Switching Option
A2: Problem 12.6
A3: INPUT x canola | B3: x | C3: 1
A4: INPUT y palm oil | B4: y | C4: 1
A5: Convenience yield of x | B5: δx | C5: 0.04
A6: Convenience yield of y | B6: δy | C6: 0.04
A7: Volatility of x | B7: σx | C7: 0.2
A8: Volatility of y | B8: σy | C8: 0.2
A9: Correlation x with y | B9: ρ | C9: 0.5
A10: Risk-free interest rate | B10: r | C10: 0.05
A11: Output price for x | B11: px | C11: 3
A12: Output price for y | B12: py | C12: 3
A15: Switching cost from x to y | B15: S12 | C15: 0.5
A16: Switching cost from y to x | B16: S21 | C16: 0.5
A17: PV of revenues using x | B17: X | C17: =(-C3/C5+C11/C10) -> 35
A18: PV of revenues using y | B18: Y | C18: =(-C4/C6+C12/C10) -> 35
A19: Switching boundary x to y | B19: x12 | C19: =C3 -> 1
A20: Switching boundary y to x | B20: x21 | C20: 1
B21: SOLUTION | D21: OPTION VALUE
A22: Asset value in operating mode '1' | B22: V1(x,y) | C22: =-C3/C5+C11/C10+C24*C3^C28*C4^C29 -> 42.69176345 | D22: =C22-C17 -> 7.691763449
A23: Asset value in operating mode '2' | B23: V2(x,y) | C23: =-C4/C6+C12/C10+C25*C3^C30*C4^C31 -> 42.68799429 | D23: =C23-C18 -> 7.687994293
B24: A | C24: 7.691763449
B25: B | C25: 7.687994293
A26: Switching boundary x to y | B26: y12 (x) | C26: 0.7092764333
A27: Switching boundary y to x | B27: y21 (x) | C27: 1.354598946
A28: Solution quadrant | B28: β11 | C28: 2.01027778 | D28: must be positive
A29: Solution quadrant | B29: β12 | C29: -0.9399546999 | D29: must be negative
A30: Solution quadrant | B30: β21 | C30: -0.9453992751 | D30: must be negative
A31: Solution quadrant | B31: β22 | C31: 2.009484523 | D31: must be positive
B32: EQUATIONS
A33: Value matching 1 | B33: EQ47 | C33: =(C24*C19^C28*C26^C29-C19/C5+C11/C10-C25*C19^C30*C26^C31+C26/C6-C12/C10+C15) -> -1.374072411e-08
A34: Value matching 2 | B34: EQ48 | C34: =(C24*C20^C28*C27^C29-C20/C5+C11/C10-C25*C20^C30*C27^C31+C27/C6-C12/C10-C16) -> 1.216567114e-08
A35: Smooth pasting 1A | B35: EQ49 | C35: =(C28*C24*C19^(C28-1)*C26^C29-1/C5-C30*C25*C19^(C30-1)*C26^C31) -> -1.387246096e-07
A36: Smooth pasting 1B | B36: EQ50 | C36: =(C29*C24*C19^C28*C26^(C29-1)-C31*C25*C19^C30*C26^(C31-1)+1/C6) -> 1.485635472e-07
A37: Smooth pasting 2A | B37: EQ51 | C37: =(C28*C24*C20^(C28-1)*C27^C29-1/C5-C30*C25*C20^(C30-1)*C27^C31) -> -1.689260731e-07
A38: Smooth pasting 2B | B38: EQ52 | C38: =(C29*C24*C20^C28*C27^(C29-1)-C31*C25*C20^C30*C27^(C31-1)+1/C6) -> 1.543760924e-07
A39: Solution quadrant 1 | B39: EQ44 | C39: =0.5*C7^2*C28*(C28-1)+0.5*C8^2*C29*(C29-1)+C9*C7*C8*C28*C29+C28*(C10-C5)+C29*(C10-C6)-C10 -> 5.243356443e-11
A40: Solution quadrant 2 | B40: EQ46 | C40: =0.5*C7^2*C30*(C30-1)+0.5*C8^2*C31*(C31-1)+C9*C7*C8*C30*C31+C30*(C10-C5)+C31*(C10-C6)-C10 -> 5.157257954e-11
B41: Sum | C41: =SUM(ABS(C33)+ABS(C34)+ABS(C35)+ABS(C36)+ABS(C37)+ABS(C38)+ABS(C39)+ABS(C40)) -> 6.366007237e-07
B42: SOLVER: SET C41=0, CHANGING C24:C31
B43: Spread | C43: =C27-C26 -> 0.6453225123
A44: PDE | B44: EQ 35 | C44: =0.5*(C7^2)*(C3^2)*C50+0.5*(C8^2)*(C4^2)*C51+C9*C7*C8*C3*C4*C52+(C10-C5)*C3*C48+(C10-C6)*C4*C49-C10*C46+(-C3+C11) -> 4.033062773e-10
B45: EQ 36 | C45: =0.5*(C7^2)*(C3^2)*C57+0.5*(C8^2)*(C4^2)*C58+C9*C7*C8*C3*C4*C59+(C10-C5)*C3*C55+(C10-C6)*C4*C56-C10*C53+(-C4+C12) -> 3.964895079e-10
A46: Switch x to y | B46: V1(x,y) | C46: =IF(C4>C26,-C3/C5+C11/C10+C24*C3^C28*C4^C29,C47) -> 42.69176345
B47: V*-K | C47: =C12/C10-C26/C6-C15 -> 41.76808917
B48: F'(x) | C48: =-1/C5+C28*C24*C3^(C28-1)*C4^C29 -> -9.537418852
B49: F'(y) | C49: =C29*C24*C3^C28*C4^(C29-1) -> -7.229909204
B50: F''(x) | C50: =C28*(C28-1)*C24*C3^(C28-2)*C4^C29 -> 15.62150215
B51: F''(y) | C51: =C29*(C29-1)*C24*C3^C28*C4^(C29-2) -> 14.02569634
B52: F''(x,y) | C52: =C28*C29*C24*C3^(C28-1)*C4^(C29-1) -> -14.53412582
A53: Switch y to x | B53: V2(x,y) | C53: =-C4/C6+C12/C10+C25*C3^C30*C4^C31 -> 42.68799429
B54: V*-K | C54: =C11/C10-C20/C5-C16 -> 34.5
B55: F'(x) | C55: =C30*C25*C3^(C30-1)*C4^C31 -> -7.268224232
B56: F'(y) | C56: =-1/C6+C31*C25*C3^C30*C4^(C31-1) -> -9.551094454
B57: F''(x) | C57: =C30*(C30-1)*C25*C3^(C30-2)*C4^C31 -> 14.13959815
B58: F''(y) | C58: =C31*(C31-1)*C25*C3^C30*C4^(C31-2) -> 15.59543105
B59: F''(x,y) | C59: =C30*C31*C25*C3^(C30-1)*C4^(C31-1) -> -14.6053841
A60: EQ 35 | B60: 0.5*(C7^2)*(C3^2)*C50+0.5*(C8^2)*(C4^2)*C51+C9*C7*C8*C3*C4*C52+(C10-C5)*C3*C48+(C10-C6)*C4*C49-C10*C46+(-C3+C11)
A61: EQ 36 | B61: 0.5*(C7^2)*(C3^2)*C57+0.5*(C8^2)*(C4^2)*C58+C9*C7*C8*C3*C4*C59+(C10-C5)*C3*C55+(C10-C6)*C4*C56-C10*C53+(-C4+C12)
A62: Switch x to y | B62: V1(x,y) | C62: IF(C4>C26,-C3/C5+C11/C10+C24*C3^C28*C4^C29,C47)
B63: V*-K | C63: C12/C10-C26/C6-C15
B64: F'(x) | C64: -1/C5+C28*C24*C3^(C28-1)*C4^C29
B65: F'(y) | C65: C29*C24*C3^C28*C4^(C29-1)
B66: F''(x) | C66: C28*(C28-1)*C24*C3^(C28-2)*C4^C29
B67: F''(y) | C67: C29*(C29-1)*C24*C3^C28*C4^(C29-2)
B68: F''(x,y) | C68: C28*C29*C24*C3^(C28-1)*C4^(C29-1)
A69: Switch y to x | B69: V2(x,y) | C69: -C4/C6+C12/C10+C25*C3^C30*C4^C31
B70: V*-K | C70: C11/C10-C20/C5-C16
B71: F'(x) | C71: C30*C25*C3^(C30-1)*C4^C31
B72: F'(y) | C72: -1/C6+C31*C25*C3^C30*C4^(C31-1)
B73: F''(x) | C73: C30*(C30-1)*C25*C3^(C30-2)*C4^C31
B74: F''(y) | C74: C31*(C31-1)*C25*C3^C30*C4^(C31-2)
B75: F''(x,y) | C75: C30*C31*C25*C3^(C30-1)*C4^(C31-1)
A76: INTERPRETATION | B76: George should switch from canola (if x=1) when palm oil y<.71.
B77: After that switch, George should switch from to canola (if x=1) when palm oil y>1.35.
B78: HBS is worth 42.69 due to this flexibility for multiple input switching,
B79: 35 if no switching allowed, and
B80: from Exercise 12.3 with similar parameter values, 41.07 if only one switch is possible.

Sheet Tutor1
A1: See Exercise 3.2

Sheet Tutor2
A1: Perpetual American Call Option
A2: INPUT | C2: Tutorial 2
A3: V | B3: 8
A4: K | B4: 7.5
A5: s | B5: 0.5
A6: r | B6: 0.1
A7: d | B7: 0.1
A8: OUTPUT
A9: ROV | B9: =IF(B3<B13,(B13-B4)*(B3/B13)^B15,B11) -> 3.101236462 | C9: IF(B3<B13,(B13-B4)*(B3/B13)^B15,B11)
A10: ROV | B10: =IF(B3<B13,B14*(B3^B15),B11) -> 3.101236462 | C10: IF(B3<B13,B14*(B3^B15),B11)
A11: V-K | B11: =B3-B4 -> 0.5 | C11: B3-B4
A12: F'(V) | B12: =IF(B3<B13,B14*B15*(B3^(B15-1)),1) -> 0.5910549956 | C12: IF(B3<B13,B14*B15*(B3^(B15-1)),1)
A13: V* | B13: =(B15/(B15-1))*B4 -> 21.79401634 | C13: (B15/(B15-1))*B4
A14: A | B14: =(B13-B4)/(B13^B15) -> 0.1301961148 | C14: (B13-B4)/(B13^B15)
A15: b1 | B15: =0.5-(B6-B7)/(B5^2)+SQRT(((B6-B7)/(B5^2)-0.5)^2 + 2*B6/(B5^2)) -> 1.524695077 | C15: 0.5-(B6-B7)/(B5^2)+SQRT(((B6-B7)/(B5^2)-0.5)^2 + 2*B6/(B5^2))
A17: ODE | B17: =0.5*(B5^2)*(B3^2)*B18+(B6-B7)*B3*B12-B6*B10 -> 0 | C17: 0.5*(B5^2)*(B3^2)*B18+(B6-B7)*B3*B12-B6*B10
A18: F''(V) | B18: =IF(B3<B13,B14*B15*(B15-1)*(B3^(B15-2)),0) -> 0.03876545577 | C18: IF(B3<B13,B14*B15*(B15-1)*(B3^(B15-2)),0)
A19: F'(V*) | B19: =B14*B15*(B13^(B15-1)) -> 1 | C19: B14*B15*(B13^(B15-1))
A20: F(V*) | B20: =IF(B3<B13,B14*(B13^B15),B11) -> 14.29401634 | C20: IF(B3<B13,B14*(B13^B15),B11)
A21: V*-K | B21: =B13-B4 -> 14.29401634 | C21: B13-B4
A22: # Projects | B22: 5
A23: TOTAL ROV | B23: =B10*B22 -> 15.50618231 | C23: B10*B22
A24: ROV-NPV | B24: =B22*(B9-B11) -> 13.00618231 | C24: B22*(B9-B11)
A26: SECURITY ANALYSIS OF ISEG-GAS S.A..
A27: ASSETS | B27: LIAB
A28: 10 | B28: 10
A29: =B24 -> 13.00618231 | B29: =A30-B28 -> 13.00618231 | C29: NET APPRAISED RO VALUE
A30: =A28+A29 -> 23.00618231 | C30: Total Assets
A31: SHARES | B31: 10
B32: =B29/B31 -> 1.300618231 | C32: NET REAL OPTION VALUE/SHARE

Sheet Tutor3
A1: See Problem 12.5

Sheet Tutor4
B1: Real Debt Strategy Simple
B4: ACCOUNTS | C4: REAL
A5: ASSETS | B5: =B10 -> 100 | C5: =C10-C15*C19*(C19/C10)^-C20 -> 95.1171875 | D5: C10-C15*C19*(C19/C10)^-C20
A6: DEBT | B6: =B12 -> 62.5 | C6: =B6+((1-C15)*C19-B6)*(C19/C10)^-C20 -> 47.8515625 | D6: B6+((1-C15)*C19-B6)*(C19/C10)^-C20
A7: EQ | B7: =B5-B6 -> 37.5 | C7: =C5-C6 -> 47.265625 | D7: C5-C6
A9: INPUT
A10: NOM V | B10: 100 | C10: =B10 -> 100
A11: Coupon | B11: 2.5 | C11: =B11 -> 2.5
A12: NOM Debt | B12: =B11/C17 -> 62.5 | C12: =B12 -> 62.5
A13: d | C13: 0.04
A14: s | C14: 0.2
A15: a | C15: 0.5
A16: t | C16: 0
A17: r(f) | C17: 0.04
A18: OUTPUT
A19: VB | C19: =((((1-C16)*C11)/C17))*-C20/(1-C20) -> 31.25 | D19: (1-C16)*(C11/C17)*(-C20/(-C20+1))
A20: b2 | C20: =(0.5-(C17-C13)/(C14^2)-SQRT((0.5-(C17-C13)/(C14^2))^2+2*C17/(C14^2))) -> -1
A21: b2 | B21: (0.5-(C17-C13)/(C14^2)-SQRT((0.5-(C17-C13)/(C14^2))^2+2*C17/(C14^2)))
